Cogmind - Beta 11.1 --- EXPLORER MODE // 2022.07.05 @ 00:11:10 // Winter2019/RPGLIKE Player: Grimbling Result: Establishing 0b11! Performance ------------- Evolutions (9) 4500 Regions Visited (34) 6800 Robots Destroyed (891) 4455 Value Destroyed (59223) 59223 Prototype IDs (278) 5560 Alien Tech Used (10) 2000 Bonus (48920) 48920 TOTAL SCORE: 131458 Bonus ------- Triggered High Security 1000 High Alert Combat Kills 16300 Follower Combat Kills 1544 Entered Garrisons 2000 Used RIF Installer 5000 Scanned by Researcher 500 Destroyed MAIN.C Guards 500 Met MAIN.C 5000 Destroyed MAIN.C Shell 5000 Destroyed MAIN.C 10000 Win 3000 Friendly Fire -924 Cogmind --------- Core Integrity 1149/1150 Matter 800/800 Energy 612/630 System Corruption 0% Temperature Cool (12) Movement Walking (120) Location 0b11 Command Parts ------- > --- POWER (3) -------- Improved Quantum Reactor Zero-point Reactor Zero-point Reactor > --- PROPULSION (6) --- Centrium Leg Centrium Leg Centrium Leg Centrium Leg Centrium Leg Centrium Leg > --- UTILITY (12) ----- Experimental Target Analyzer Advanced Kinecellerator Advanced Weapon Cycler Damper Plating Graphene Brace Advanced Focal Shield Beam Splitter AEGIS Remote Shield Long-range Tractor Beam > --- WEAPON (5) ------- Helical Railgun Helical Railgun Multirail Multirail Multirail > --- INVENTORY (8) ---- Protomatter-99 Protomatter-75 Protomatter-71 Protomatter-25 Improved Terrain Scanner Experimental Shock Absorption System Advanced Remote Datajack Peak State ------------ > --- POWER ------------ Improved Quantum Reactor Improved Quantum Reactor Improved Quantum Reactor > --- PROPULSION ------- Centrium Leg Centrium Leg Centrium Leg Centrium Leg Centrium Leg Centrium Leg > --- UTILITY ---------- Experimental Target Analyzer Advanced Kinecellerator Advanced Weapon Cycler Damper Plating Graphene Brace Advanced Focal Shield Experimental Shock Absorption System Experimental Force Field AEGIS Remote Shield > --- WEAPON ----------- Helical Railgun Helical Railgun Multirail Multirail Multirail > --- INVENTORY -------- Protomatter Protomatter Protomatter Protomatter Improved Terrain Scanner Beam Splitter Long-range Tractor Beam Advanced Remote Datajack [Rating: 237] Favorites ----------- Power Antimatter Reactor Engine Improved Deuterium Engine Power Core Light Nuclear Core Reactor Antimatter Reactor Propulsion Centrium Leg Leg Centrium Leg Hover Unit Gravmag System Utility Improved Terrain Scanner Device Improved Terrain Scanner Processor Improved Signal Interpreter Hackware Relay Coupler [Grunt] Protection Damper Plating Artifact Spacefold Activator Weapon Hypervelocity Railgun Ballistic Gun Hypervelocity Railgun Ballistic Cannon Hardcell Cannon Special Weapon Advanced Remote Datajack Piercing Weapon Plasma Lance Special Melee Weapon Advanced Datajack Build | -11 -10 -10 -10 -9 -8 -8 -8 -8 -7 -7 -7 -7 -7 -7 -6 -6 -6 -6 -6 -6 -5 -5 -5 -5 -4 -4 -3 -3 -3 -2 -2 -2 -1 -1 ------- Run | Scr Mat Min Exi Min Mat Gar Mat Gar Fac Was Fac Gar Fac Gar Fac Was Fac Gar Fac Gar Fac Gar Fac Gar Fac Gar Res Tes Gar Res Qua Sec Acc Com Slots Evolved 22 | 4 3 1 . . 4 1 . 1 1 . . . 1 1 . . . 1 . . . 1 . 1 . . 1 1 . . . . . . Power 2 | . 1 . . . . . . . . . . . . 1 . . . . . . . . . . . . . . . . . . . . Propulsion 5 | 1 1 . . . 1 . . . 1 . . . 1 . . . . . . . . . . . . . . . . . . . . . Utility 11 | 2 1 . . . 2 1 . 1 . . . . . . . . . 1 . . . 1 . 1 . . . 1 . . . . . . Weapon 4 | 1 . 1 . . 1 . . . . . . . . . . . . . . . . . . . . . 1 . . . . . . . Parts Attached 272 | 8 2 6 . . 9 1 . . 23 1 4 11 1 2 3 4 . 6 3 5 2 2 1 5 7 6 3 29 4 23 27 39 12 23 Power 34 | 1 1 . . . 1 . . . 3 . . 2 . 1 . 3 . . . 1 1 . . 1 2 . 1 3 1 3 . 4 1 4 Engine 9 | 1 . . . . 1 . . . 3 . . 2 . 1 . . . . . 1 . . . . . . . . . . . . . . Core 3 | . 1 . . . . . . . . . . . . . . 1 . . . . 1 . . . . . . . . . . . . . Reactor 22 | . . . . . . . . . . . . . . . . 2 . . . . . . . 1 2 . 1 3 1 3 . 4 1 4 Propulsion 50 | 2 . 1 . . 1 . . . 8 1 . 2 . 1 2 . . 5 2 . . . . 2 . . . 6 . 11 3 3 . . Treads . | . . . . . . . . . . . . . . . . . . . . . . . . . . . . . . . . . . . Leg 40 | 2 . 1 . . 1 . . . 4 . . . . . . . . 5 2 . . . . 2 . . . 6 . 11 3 3 . . Wheel . | . . . . . . . . . . . . . . . . . . . . . . . . . . . . . . . . . . . Hover 10 | . . . . . . . . . 4 1 . 2 . 1 2 . . . . . . . . . . . . . . . . . . . Flight . | . . . . . . . . . . . . . . . . . . . . . . . . . . . . . . . . . . . Utility 132 | 3 1 1 . . 3 1 . . 5 . 3 2 1 . 1 1 . 1 . 2 . 2 . 2 2 2 1 14 1 8 24 29 5 17 Device 103 | 2 . . . . 2 1 . . 1 . 1 1 . . . . . 1 . 2 . 1 . 2 2 2 . 10 . 8 21 25 4 17 Storage . | . . . . . . . . . . . . . . . . . . . . . . . . . . . . . . . . . . . Processor 16 | . 1 . . . 1 . . . 2 . . 1 1 . 1 . . . . . . . . . . . 1 4 . . 1 2 1 . Hackware 2 | . . . . . . . . . . . . . . . . . . . . . . 1 . . . . . . 1 . . . . . Protection 9 | 1 . 1 . . . . . . 2 . 2 . . . . 1 . . . . . . . . . . . . . . 2 . . . Artifact 2 | . . . . . . . . . . . . . . . . . . . . . . . . . . . . . . . . 2 . . Weapon 56 | 2 . 4 . . 4 . . . 7 . 1 5 . . . . . . 1 2 1 . 1 . 3 4 1 6 2 1 . 3 6 2 Energy Gun . | . . . . . . . . . . . . . . . . . . . . . . . . . . . . . . . . . . . Energy Cannon . | . . . . . . . . . . . . . . . . . . . . . . . . . . . . . . . . . . . Ballistic Gun 50 | 2 . 4 . . 4 . . . 7 . 1 5 . . . . . . 1 1 1 . 1 . 3 4 . 4 2 1 . 3 5 1 Ballistic Cannon 1 | . . . . . . . . . . . . . . . . . . . . . . . . . . . . . . . . . 1 . Launcher . | . . . . . . . . . . . . . . . . . . . . . . . . . . . . . . . . . . . Special Weapon 1 | . . . . . . . . . . . . . . . . . . . . . . . . . . . . . . . . . . 1 Impact Weapon . | . . . . . . . . . . . . . . . . . . . . . . . . . . . . . . . . . . . Slashing Weapon . | . . . . . . . . . . . . . . . . . . . . . . . . . . . . . . . . . . . Piercing Weapon 2 | . . . . . . . . . . . . . . . . . . . . . . . . . . . . 2 . . . . . . Special Melee Weapon 2 | . . . . . . . . . . . . . . . . . . . . 1 . . . . . . 1 . . . . . . . Unidentified Prototypes 50 | . . . . . . . . . 2 . 1 . . . . . . . . . . . 1 . . . . 8 . 4 13 15 3 3 Parts Lost 1 | . . . . . . . . . . 1 . . . . . . . . . . . . . . . . . . . . . . . . Power . | . . . . . . . . . . . . . . . . . . . . . . . . . . . . . . . . . . . Propulsion . | . . . . . . . . . . . . . . . . . . . . . . . . . . . . . . . . . . . Utility . | . . . . . . . . . . . . . . . . . . . . . . . . . . . . . . . . . . . Weapon 1 | . . . . . . . . . . 1 . . . . . . . . . . . . . . . . . . . . . . . . Highest Loss Streak 1 | . . . . . . . . . . 1 . . . . . . . . . . . . . . . . . . . . . . . . To Critical Strikes . | . . . . . . . . . . . . . . . . . . . . . . . . . . . . . . . . . . . Average Slot Usage (%) 89 | . 92 98 100 100 92 96 100 97 97 97 94 98 95 99 99 88 85 81 85 86 85 86 86 85 84 86 87 87 87 87 87 87 87 87 Engine 2 | . 10 8 8 8 6 5 5 5 8 10 10 10 10 13 14 9 4 4 4 4 2 . . . . . . . . . . . . . Core 1 | . 1 8 8 8 6 5 5 5 2 . . . . . . . . . . . 1 4 4 . . . . . . . . . . . Reactor 8 | . . . . . . . . . . . . . . . . 3 9 9 9 9 9 8 8 12 12 12 12 11 11 10 11 10 11 11 Leg 21 | . 20 24 25 25 20 23 23 22 18 . . . . . . . . 17 26 27 27 26 26 25 25 25 24 23 23 22 23 22 23 23 Hover 2 | . . . . . . . . . 2 25 26 26 25 28 28 28 28 6 . . . . . . . . . . . . . . . . Device 20 | . 20 17 16 16 17 18 23 22 21 21 21 21 20 19 19 15 14 16 18 18 18 19 17 16 17 20 16 17 19 21 22 22 22 25 Processor 7 | . 7 8 8 8 9 11 11 11 15 15 15 13 15 14 13 6 4 4 4 4 4 4 4 4 4 4 7 7 7 7 7 7 7 3 Hackware 1 | . . . . . . . . . . . . . . . . . . . . . . 1 4 4 4 4 4 3 3 1 . . . . Protection 4 | . 10 8 8 8 6 5 5 5 4 4 1 5 5 4 4 4 4 4 4 4 4 4 4 4 4 4 4 3 3 3 3 3 3 3 Ballistic Gun 18 | . 20 21 25 25 23 23 23 22 21 20 20 21 20 19 19 19 19 18 18 18 18 17 17 16 16 15 16 15 18 19 19 19 18 18 Naked Turns . | . . . . . . . . . . . . . . . . . . . . . . . . . . . . . . . . . . . Heaviest Build 158 | 12 17 23 23 23 31 36 36 36 51 51 50 54 50 60 60 109 109 121 121 124 119 120 119 121 127 138 138 137 150 151 147 156 153 158 Greatest Support 200 | 20 20 30 30 30 47 47 47 47 62 51 51 53 53 62 63 63 63 110 126 126 126 126 126 126 126 126 126 160 160 184 190 200 200 200 Greatest Overweight (x) 16 | 1 . . . . 1 . . . 16 1 . 1 . . . 1 1 2 1 . . . . 1 1 1 1 . . 1 . . . . Average Overweight (x) . | . . . . . . . . . . . . . . . . . 1 . . . . . . . . . . . . . . . . . Largest Inventory Capacity 8 | 2 2 2 2 2 2 3 3 5 5 5 5 5 5 6 6 6 6 7 7 7 7 7 7 7 7 7 7 7 7 7 7 7 8 8 Average Capacity 6 | 1 2 2 2 2 2 2 3 3 5 5 5 5 5 5 6 6 6 6 7 7 7 7 7 7 7 7 7 7 7 7 7 7 7 8 Most Carried 8 | . 1 2 2 2 2 3 3 5 5 5 5 5 5 6 6 6 6 6 7 7 7 7 7 7 7 7 7 7 7 7 7 7 8 8 Average Carried 5 | . . 1 2 2 1 2 3 3 4 5 5 4 5 5 6 5 6 5 6 7 6 6 6 5 6 6 6 6 7 6 6 6 6 6 Final Capacity 8 | 2 2 2 2 2 2 3 3 5 5 5 5 5 5 6 6 6 6 7 7 7 7 7 7 7 7 7 7 7 7 7 7 7 8 8 Final Carried 8 | . 1 2 2 2 2 3 3 5 5 5 5 5 5 6 6 6 6 6 7 7 7 7 6 7 7 7 7 7 7 7 7 7 8 7 Class Distribution -------------------- 39% | Scavenger-Skirmisher 24% | Scavenger-Gunner 13% | Scavenger-Tank 6% | Scavenger-Assassin 5% | Generator-Tank 5% | Scavenger-Scout Dominant Class ---------------- Hacker-Mutant | -10/Materials Scavenger-Gunner | -10/Mines Scavenger-Gunner | -10/Exiles Scavenger-Gunner | -9/Mines Scavenger-Gunner | -8/Materials Scavenger-Gunner | -8/Garrison Scavenger-Gunner | -8/Materials Scavenger-Gunner | -8/Garrison Scavenger-Skirmisher | -7/Factory Scavenger-Scout | -7/Waste Hacker-Scout | -7/Factory Scavenger-Scout | -7/Garrison Scavenger-Scout | -7/Factory Scavenger-Scout | -7/Garrison Scavenger-Scout | -6/Factory Scavenger-Skirmisher | -6/Waste Scavenger-Skirmisher | -6/Factory Scavenger-Skirmisher | -6/Garrison Scavenger-Skirmisher | -6/Factory Scavenger-Skirmisher | -6/Garrison Scavenger-Skirmisher | -5/Factory Scavenger-Skirmisher | -5/Garrison Scavenger-Skirmisher | -5/Factory Scavenger-Skirmisher | -5/Garrison Scavenger-Skirmisher | -4/Factory Scavenger-Skirmisher | -4/Garrison Scavenger-Assassin | -3/Research Scavenger-Assassin | -3/Testing Scavenger-Skirmisher | -3/Garrison Scavenger-Tank | -2/Research Scavenger-Tank | -2/Quarantine Generator-Tank | -2/Section 7 Scavenger-Gunner | -1/Access Scavenger-Tank | -1/Command Resources | -11 -10 -10 -10 -9 -8 -8 -8 -8 -7 -7 -7 -7 -7 -7 -6 -6 -6 -6 -6 -6 -5 -5 -5 -5 -4 -4 -3 -3 -3 -2 -2 -2 -1 -1 ----------- Run | Scr Mat Min Exi Min Mat Gar Mat Gar Fac Was Fac Gar Fac Gar Fac Was Fac Gar Fac Gar Fac Gar Fac Gar Fac Gar Res Tes Gar Res Qua Sec Acc Com Matter Collected 35766 | 292 86 185 . 63 345 620 392 546 1352 10 295 1055 132 666 142 40 32 300 10 710 260 932 218 1010 1366 1601 802 1421 1454 3407 2936 5141 3685 4260 Remotely 34894 | 30 86 185 . 63 345 620 392 546 1352 10 295 983 132 666 142 40 32 300 10 710 260 932 218 1010 1366 1601 802 1421 1449 3407 2936 5112 3685 3756 Salvage Created 53344 | 120 136 228 . 25 636 1098 796 944 1790 . 462 897 113 1093 317 . 48 170 . 1330 398 1987 372 2119 2703 1530 1046 2217 2398 5501 3228 5917 7244 6481 Parts 2909 | 9 6 33 . 8 40 62 54 65 111 . 15 69 2 78 13 . 10 10 . 57 37 75 27 72 167 68 54 155 105 303 182 343 422 257 Haulers Intercepted 23 | . . . . . 2 . 1 . 3 . . . . . . . . . . . . . 1 . . . 1 2 . 4 . 4 5 . Recyclers Shooed 13 | 1 . . . . 2 . . . 2 . 1 . . . . . . . . . . . . . 3 . . . . . . . 1 3 Parts Field Recycled . | . . . . . . . . . . . . . . . . . . . . . . . . . . . . . . . . . . . Retrieved Matter . | . . . . . . . . . . . . . . . . . . . . . . . . . . . . . . . . . . . Parts Self-Destructed . | . . . . . . . . . . . . . . . . . . . . . . . . . . . . . . . . . . . Prevented . | . . . . . . . . . . . . . . . . . . . . . . . . . . . . . . . . . . . Kills | -11 -10 -10 -10 -9 -8 -8 -8 -8 -7 -7 -7 -7 -7 -7 -6 -6 -6 -6 -6 -6 -5 -5 -5 -5 -4 -4 -3 -3 -3 -2 -2 -2 -1 -1 ------- Run | Scr Mat Min Exi Min Mat Gar Mat Gar Fac Was Fac Gar Fac Gar Fac Was Fac Gar Fac Gar Fac Gar Fac Gar Fac Gar Res Tes Gar Res Qua Sec Acc Com Combat Hostiles Destroyed 767 | . 2 9 . 2 12 25 13 30 34 . 8 28 2 29 1 . . 4 . 22 7 31 5 36 38 32 12 29 26 65 33 58 83 91 Guns 764 | . 2 9 . 2 12 25 13 30 34 . 8 28 2 29 1 . . 4 . 22 7 31 5 36 35 32 12 29 26 65 33 58 83 91 AOE 3 | . . . . . . . . . . . . . . . . . . . . . . . . . 3 . . . . . . . . . Classes Destroyed 27 | 2 1 4 . . 3 2 1 1 1 . . . . 1 . . . . . . . . . 1 2 . . 1 . . 2 2 2 1 Worker 23 | . . 1 . 1 . . 1 . 3 . . . . . 1 . . . . . 1 . 1 . 4 . 1 . . 2 1 . 5 1 Builder 26 | . . 1 . . . . 1 . . . . . . . . . . . . . 2 . 1 . 7 . . 1 . 3 2 1 7 . Tunneler 7 | 2 . . . . . . . . . . . . 1 . . . 1 . . . . . . . 2 . . . . . . . 1 . Hauler 23 | . . . . . 2 . 1 . 3 . . . . . . . . . . . . . 1 . . . 1 2 . 4 . 4 5 . Recycler 15 | 1 . . . . . . . . 2 . 1 . . . 2 . . . . . . . 1 . 2 . . . . 2 . 3 . 1 Carrier 1 | . . . . . . . . . . . . . . . . . . . . . . . . . . . . . . . . . 1 . Mechanic 4 | . . . . . . . . . . . . . . . . . . . . . . . . . 1 . . . . . . . 1 2 Operator 14 | . . . . . 1 . 1 . 1 . . . . . . . 1 . . . . . 1 . 2 . . . . 1 . 3 3 . Watcher 30 | . . . . . . . 3 . 3 . . . . . 1 . . . . . 1 . 1 1 2 1 2 2 . 4 1 4 1 3 Swarmer 110 | . . 3 . . 2 9 2 9 . . 3 5 . 10 . . . 1 . 2 . 4 3 13 3 10 . 3 2 8 . 7 7 4 Cutter 4 | . . . . . . . . 2 . . . . . . . . . . . . . . . 2 . . . . . . . . . . Saboteur 4 | . . . . . . . . . . . . . . . . . . . . . . . . . 1 . . . . . . . 1 2 Grunt 276 | . 2 4 . 2 4 9 7 16 24 . 2 11 2 6 . . . . . 14 3 14 . 11 17 10 3 3 15 16 14 4 30 33 Brawler 26 | . . . . . . 1 . . 1 . 1 1 . 1 . . . . . . . . . . 3 2 . . 3 3 . . 2 8 Duelist 23 | . . . . . . 2 . . . . . 2 . 1 . . . . . 1 . 4 . . 1 1 1 . 1 3 . . . 6 Protector 7 | . . . . . . . . . . . . . . . . . . . . . . . . . . . . . . . . . . 7 Researcher 3 | . . . . . . . . . . . . . . . . . . . . . . . . . . . . 1 . . . 2 . . Sentry 93 | . . 2 . . 5 4 4 3 5 . 1 7 . 6 . . . 1 . 3 2 4 . 5 6 7 4 . 2 5 . 9 5 3 Specialist 14 | . . . . . . . . . . . . . . 2 . . . . . 2 . . . 3 . . . . . . 3 . 2 2 Hunter 88 | . . . . . 1 . . . 2 . 1 1 . 2 . . . 2 . . 2 5 2 1 . . 4 10 . 13 7 8 19 8 Programmer 86 | . . . . . . . . . 2 . . 1 . 1 1 . . . . . . . . . 8 . . 13 2 17 2 16 14 9 Heavy 1 | . . . . . . . . . . . . . . . . . . . . . . . . . . . . . . . . . 1 . Behemoth 10 | . . . . . . . . . . . . . . . . . . . . . . . . 1 1 2 . . 1 . . 2 2 1 Quarantine Guard 5 | . . . . . . . . . . . . . . . . . . . . . . . . . . . . . . . 5 . . . S7 Guard 4 | . . . . . . . . . . . . . . . . . . . . . . . . . . . . . . . . 4 . . M Guard 2 | . . . . . . . . . . . . . . . . . . . . . . . . . . . . . . . . . . 2 Combat Programmer 2 | . . . . . . . . . . . . . . . . . . . . . . . . . . . . . . . . . . 2 Investigator 1 | . . . . . . . . . . . . . . . . . . . . . . . . . . . . . . . . . . 1 Striker 4 | . . . . . . . . . . . . . . . . . . . . . . . . . . . . . . . . 2 . 2 Executioner 4 | . . . . . . . . . . . . . . . . . . . . . . . . . . . . . . . . 4 . . Alpha 7 3 | . . . . . . . . . . . . . . . . . . . . . . . . . . . . . . . 1 2 . . Fortress 1 | . . . . . . . . . . . . . . . . . . . . . . . . . . . . . . . 1 . . . Best Kill Streak 33 | 2 2 2 . 2 4 8 7 8 9 . 5 6 2 11 3 . 1 2 . 4 5 6 3 6 7 7 6 5 10 15 5 6 10 33 Combat Bots Only 30 | . 2 2 . 2 4 8 4 8 7 . 4 6 2 11 1 . . 2 . 4 2 6 3 5 7 7 3 3 10 10 5 6 10 30 Max Kills in Single Turn 6 | 1 1 1 . 1 2 4 2 3 2 . 2 2 1 3 1 . 1 1 . 2 3 3 2 2 6 3 2 2 2 2 2 2 3 4 Gunslinging 3 | . . . . . 1 3 1 2 . . 1 1 . 2 . . . . . . . 1 1 1 1 2 . 1 1 1 . 1 1 2 Exploded 3 | . . . . . . . . . . . . . . . . . . . . . . . . . 3 . . . . . . . . . Melee . | . . . . . . . . . . . . . . . . . . . . . . . . . . . . . . . . . . . Uniques/NPCs Destroyed 2 | . . . . . . . . . . . . . . . . . . . . . . . . . . . . . . . . . . 2 MAIN.C Shell (-1/Command) MAIN.C (-1/Command) Combat | -11 -10 -10 -10 -9 -8 -8 -8 -8 -7 -7 -7 -7 -7 -7 -6 -6 -6 -6 -6 -6 -5 -5 -5 -5 -4 -4 -3 -3 -3 -2 -2 -2 -1 -1 -------- Run | Scr Mat Min Exi Min Mat Gar Mat Gar Fac Was Fac Gar Fac Gar Fac Was Fac Gar Fac Gar Fac Gar Fac Gar Fac Gar Res Tes Gar Res Qua Sec Acc Com Damage Taken 12121 | . 73 380 . 60 193 463 229 417 751 19 77 309 31 186 57 . . 134 . 332 227 740 53 617 924 1177 231 304 460 332 235 880 1184 1046 Core 7028 | . 50 269 . 43 141 340 172 303 549 15 61 216 23 121 45 . . 57 . 159 113 429 28 341 503 680 130 138 240 162 119 452 575 554 Absorbed by Shields 6420 | . . . . . . . 8 . 144 4 88 305 20 235 . . . 64 . 176 . 29 . 12 33 807 . 124 503 361 255 897 1332 1023 Redirected to Core 6417 | . 29 239 . 34 133 332 161 275 454 15 43 175 23 108 45 . . 53 . 140 113 418 28 322 445 627 114 138 224 162 116 423 533 495 Core Remaining (%) 97 | 100 . . . 100 . . . 100 . . . . . 100 . . . . . 86 . . . 100 . 100 . . 90 . . 97 . 99 Volleys Fired 1588 | 6 8 38 . 7 24 45 28 39 76 . 18 57 8 40 7 . 2 15 . 40 16 56 13 60 83 85 22 51 55 117 120 172 148 132 Largest 5 | 2 2 3 . 3 4 4 4 4 4 . 4 4 4 4 4 . 4 4 . 4 4 4 4 4 4 4 4 5 5 5 5 5 5 5 Hottest 211 | 40 40 66 . 66 99 99 99 99 112 . 109 127 127 127 127 . 127 127 . 127 132 132 132 129 133 155 155 180 190 195 195 198 194 211 Shots Fired 6709 | 12 16 79 . 21 83 174 112 156 304 . 72 228 32 160 28 . 8 60 . 160 64 224 52 240 332 331 88 199 250 559 457 823 740 645 Gun 6706 | 12 16 79 . 21 83 174 112 156 304 . 72 228 32 160 28 . 8 60 . 160 64 224 52 240 332 331 88 199 250 559 457 823 740 642 Cannon . | . . . . . . . . . . . . . . . . . . . . . . . . . . . . . . . . . . . Launcher . | . . . . . . . . . . . . . . . . . . . . . . . . . . . . . . . . . . . Special 3 | . . . . . . . . . . . . . . . . . . . . . . . . . . . . . . . . . . 3 Kinetic 6706 | 12 16 79 . 21 83 174 112 156 304 . 72 228 32 160 28 . 8 60 . 160 64 224 52 240 332 331 88 199 250 559 457 823 740 642 Thermal . | . . . . . . . . . . . . . . . . . . . . . . . . . . . . . . . . . . . Explosive . | . . . . . . . . . . . . . . . . . . . . . . . . . . . . . . . . . . . Electromagnetic . | . . . . . . . . . . . . . . . . . . . . . . . . . . . . . . . . . . . Robot Hit Streak 83 | 8 11 19 . 21 25 45 38 31 57 . 33 36 19 50 18 . 6 24 . 32 18 83 16 45 31 46 25 27 42 41 53 76 37 62 Robot Miss Streak 3 | 1 1 2 . . 2 1 1 2 1 . 2 2 1 2 1 . 1 1 . 2 2 2 1 2 2 2 1 2 2 2 2 2 2 3 Penetration Max 2 | . . . . . . . 1 1 1 . . 1 1 1 . . . 1 . 1 1 1 1 1 2 1 1 2 1 2 2 2 2 2 Secondary Targets 241 | . 1 2 . 1 1 14 2 16 7 . 2 9 . 6 . . . . . 4 1 10 2 7 11 16 1 6 9 19 5 12 27 50 Max Gunslinging Chain 3 | . 1 1 . 1 1 3 1 3 1 . 1 2 . 2 . . . . . 1 1 1 1 1 2 2 1 1 1 2 1 1 2 2 Shots Hit Robots 5018 | 10 13 63 . 20 64 119 93 112 234 . 62 150 23 104 18 . 5 36 . 105 46 166 30 171 263 266 71 136 174 410 382 634 496 542 Core Hits 2197 | 5 6 24 . 5 29 46 38 56 95 . 18 60 7 52 9 . 3 13 . 48 23 66 16 60 115 80 30 65 61 179 144 229 196 419 Critical Kills 314 | . . 1 . . . . 1 1 . . . 3 . 2 1 . . . . 2 . 2 3 3 8 4 13 27 18 58 33 56 49 29 Critical Parts Destroyed 567 | . . 2 . . 1 2 1 2 . . . . 1 2 . . . . . 1 1 6 . 5 10 12 18 42 23 107 56 109 93 73 Critical Strikes 1073 | . . 3 . . 1 2 3 3 . . . 3 1 4 1 . . . . 3 1 8 3 9 20 19 36 69 55 181 121 239 155 133 Destroy 1073 | . . 3 . . 1 2 3 3 . . . 3 1 4 1 . . . . 3 1 8 3 9 20 19 36 69 55 181 121 239 155 133 Melee Attacks 5 | . . . . . . . . . . . . . . . . . . . . 1 . . . . . . 4 . . . . . . . Impact . | . . . . . . . . . . . . . . . . . . . . . . . . . . . . . . . . . . . Slashing . | . . . . . . . . . . . . . . . . . . . . . . . . . . . . . . . . . . . Piercing . | . . . . . . . . . . . . . . . . . . . . . . . . . . . . . . . . . . . Sneak Attacks 5 | . . . . . . . . . . . . . . . . . . . . 1 . . . . . . 4 . . . . . . . Combat Hostiles . | . . . . . . . . . . . . . . . . . . . . . . . . . . . . . . . . . . . Follow-up Attacks . | . . . . . . . . . . . . . . . . . . . . . . . . . . . . . . . . . . . Damage Inflicted 128762 | 83 103 628 . 292 989 1873 1615 1927 4226 . 1073 3282 546 2471 440 . 128 738 . 2820 1231 4234 848 5327 10893 8711 1263 2467 2637 7557 5231 10322 15557 29250 Guns 127510 | 83 103 595 . 281 958 1873 1585 1927 4190 . 1073 3282 546 2471 367 . 128 738 . 2820 1231 4234 848 5327 10181 8711 1243 2379 2636 7517 5231 10269 15469 29214 Cannons . | . . . . . . . . . . . . . . . . . . . . . . . . . . . . . . . . . . . Explosions 798 | . . . . . . . . . . . . . . . 73 . . . . . . . . . 649 . . . . 40 . . . 36 Melee . | . . . . . . . . . . . . . . . . . . . . . . . . . . . . . . . . . . . Ramming 454 | . . 33 . 11 31 . 30 . 36 . . . . . . . . . . . . . . . 63 . 20 88 1 . . 53 88 . Kinetic 127510 | 83 103 595 . 281 958 1873 1585 1927 4190 . 1073 3282 546 2471 367 . 128 738 . 2820 1231 4234 848 5327 10181 8711 1243 2379 2636 7517 5231 10269 15469 29214 Thermal 435 | . . . . . . . . . . . . . . . . . . . . . . . . . 435 . . . . . . . . . Explosive 323 | . . . . . . . . . . . . . . . 73 . . . . . . . . . 214 . . . . . . . . 36 Electromagnetic 40 | . . . . . . . . . . . . . . . . . . . . . . . . . . . . . . 40 . . . . Impact . | . . . . . . . . . . . . . . . . . . . . . . . . . . . . . . . . . . . Slashing . | . . . . . . . . . . . . . . . . . . . . . . . . . . . . . . . . . . . Piercing . | . . . . . . . . . . . . . . . . . . . . . . . . . . . . . . . . . . . Highest Corruption 4 | . . . . . . . . . . . . . . . . . . . . . . . . . . . . 4 4 1 1 1 . . Average Corruption 1 | . . . . . . . . . . . . . . . . . . . . . . . . . . . . 1 4 1 1 1 . . Corruption Purged . | . . . . . . . . . . . . . . . . . . . . . . . . . . . . . . . . . . . Corruption Blocked 5 | . . . . . . . . . . 5 . . . . . . . . . . . . . . . . . . . . . . . . Effects 95 | . . . . . . . . . . . . . . . . . . . . . . . . . . . . 16 17 17 13 32 . . Message Errors 27 | . . . . . . . . . . . . . . . . . . . . . . . . . . . . 4 3 8 4 8 . . Matter Fused 16 | . . . . . . . . . . . . . . . . . . . . . . . . . . . . 3 5 . 3 5 . . Heat Flow Errors 8 | . . . . . . . . . . . . . . . . . . . . . . . . . . . . 2 . 2 1 3 . . Energy Discharges 14 | . . . . . . . . . . . . . . . . . . . . . . . . . . . . . 4 2 2 6 . . Parts Rejected 2 | . . . . . . . . . . . . . . . . . . . . . . . . . . . . . 1 . . 1 . . Data Loss (minor) 11 | . . . . . . . . . . . . . . . . . . . . . . . . . . . . 2 1 2 1 5 . . Data Loss (major) 5 | . . . . . . . . . . . . . . . . . . . . . . . . . . . . 2 1 . 1 1 . . Misfires 5 | . . . . . . . . . . . . . . . . . . . . . . . . . . . . 1 2 1 1 . . . Alerts 4 | . . . . . . . . . . . . . . . . . . . . . . . . . . . . 1 . 1 . 2 . . Weapon Failures 3 | . . . . . . . . . . . . . . . . . . . . . . . . . . . . 1 . 1 . 1 . . Overload Shots . | . . . . . . . . . . . . . . . . . . . . . . . . . . . . . . . . . . . Overflow Damage 141 | . . . . . . . . . . . . . . . 53 . . . . . . . . . 65 . . . . . . 3 20 . Projectiles . | . . . . . . . . . . . . . . . . . . . . . . . . . . . . . . . . . . . Explosions 112 | . . . . . . . . . . . . . . . 53 . . . . . . . . . 59 . . . . . . . . . Melee 29 | . . . . . . . . . . . . . . . . . . . . . . . . . 6 . . . . . . 3 20 . Knockbacks 2 | . . . . . . . . . 1 . . . . . . . . . . . . . . . 1 . . . . . . . . . Impact 2 | . . . . . . . . . 1 . . . . . . . . . . . . . . . 1 . . . . . . . . . Kinetic . | . . . . . . . . . . . . . . . . . . . . . . . . . . . . . . . . . . . Secondary . | . . . . . . . . . . . . . . . . . . . . . . . . . . . . . . . . . . . Self-Inflicted Damage 149 | . . . . . . . . . . . . . . . 48 . . . . . . . . . 27 . . 74 . . . . . . Shots 2 | . . . . . . . . . . . . . . . 1 . . . . . . . . . 1 . . . . . . . . . Rammed . | . . . . . . . . . . . . . . . . . . . . . . . . . . . . . . . . . . . Targets Rammed 32 | . . 3 . 1 5 . 3 . 6 . . . . . . . . . . . . . . . 3 . 1 2 1 . . 2 5 . Kicked 32 | . . 3 . 1 5 . 3 . 6 . . . . . . . . . . . . . . . 3 . 1 2 1 . . 2 5 . Crushed . | . . . . . . . . . . . . . . . . . . . . . . . . . . . . . . . . . . . Highest Temperature 309 | . . 13 . 3 . 3 3 3 . . . . . . . . . 2 . 59 57 75 24 62 78 97 96 309 155 214 284 237 8 68 Average Temperature 38 | . . 8 . 3 . 3 3 3 . . . . . . . . . 2 . 15 20 24 15 19 24 28 41 39 48 51 113 39 2 23 Received Heat Transfer 3660 | . 69 225 . 57 135 333 149 333 384 . 15 174 25 73 . . . 27 . 197 54 270 . 107 255 417 66 4 155 . . 20 72 44 Siege Activations . | . . . . . . . . . . . . . . . . . . . . . . . . . . . . . . . . . . . Robots Corrupted . | . . . . . . . . . . . . . . . . . . . . . . . . . . . . . . . . . . . Combat Hostiles . | . . . . . . . . . . . . . . . . . . . . . . . . . . . . . . . . . . . Parts Fried 1 | . . . . . . . . . . . . . . . . . . . . . . . . . . . . . . . . . 1 . Impact Corruptions 5 | . . . . . . . . . . . . . . . . . . . . . . . . . 2 . . . . . . 1 2 . Robots Melted . | . . . . . . . . . . . . . . . . . . . . . . . . . . . . . . . . . . . Combat Hostiles . | . . . . . . . . . . . . . . . . . . . . . . . . . . . . . . . . . . . Parts Melted 8 | . . . . . . . . . . . . . . . . . . . . . . . . 1 . 1 . . . . 1 4 . 1 Heat Transferred 450 | . . . . . . . . . . . . . . . . . . . . . . . . . 450 . . . . . . . . . Parts Sabotaged 5 | . . . . . . . . . . . . . . . . . . . . . . . . 2 1 . . . . 2 . . . . Parts Stolen . | . . . . . . . . . . . . . . . . . . . . . . . . . . . . . . . . . . . Parts Stripped . | . . . . . . . . . . . . . . . . . . . . . . . . . . . . . . . . . . . Power Chain Reactions 1 | . . . . . . . . . . . . . . . . . . . . . . . . . . . . . . 1 . . . . Missiles Intercepted . | . . . . . . . . . . . . . . . . . . . . . . . . . . . . . . . . . . . Alert | -11 -10 -10 -10 -9 -8 -8 -8 -8 -7 -7 -7 -7 -7 -7 -6 -6 -6 -6 -6 -6 -5 -5 -5 -5 -4 -4 -3 -3 -3 -2 -2 -2 -1 -1 ------- Run | Scr Mat Min Exi Min Mat Gar Mat Gar Fac Was Fac Gar Fac Gar Fac Was Fac Gar Fac Gar Fac Gar Fac Gar Fac Gar Res Tes Gar Res Qua Sec Acc Com Peak Influence 2771 | 15 81 182 . 63 230 1023 666 1147 467 78 235 919 527 1179 594 106 314 600 234 951 631 1213 688 1514 967 1383 822 544 895 889 572 424 1793 2771 Initial 1100 | . 7 22 . . 17 33 365 267 447 78 25 49 358 284 459 106 57 169 234 126 370 197 472 259 590 399 583 301 28 377 313 . 126 1100 Average 518 | 9 29 50 . 48 111 666 493 741 196 70 92 620 454 780 544 106 223 460 234 648 428 835 509 1100 660 1092 626 203 507 485 137 191 740 1574 Maximum Alert Level 5 | . . . . . 1 3 2 4 2 . 1 3 2 4 2 . 1 2 1 3 2 4 2 4 3 4 3 2 3 3 2 2 5 5 Low Security (%) 26 | 100 100 100 . 100 88 17 . . 43 100 88 12 . . . 100 43 9 . 2 . 3 . . . . . 49 13 . 75 55 17 . Level 1 19 | . . . . . 11 11 16 19 50 . 11 12 30 12 . . 56 24 100 9 36 7 7 9 2 1 . 41 17 28 17 37 17 . Level 2 26 | . . . . . . 17 83 21 6 . . 25 69 29 100 . . 65 . 41 63 33 92 9 65 7 75 8 41 61 7 7 22 . Level 3 14 | . . . . . . 53 . 53 . . . 48 . 49 . . . . . 45 . 22 . 26 31 36 24 . 27 10 . . 8 . Level 4 9 | . . . . . . . . 6 . . . . . 7 . . . . . . . 32 . 54 . 54 . . . . . . 25 31 Level 5 3 | . . . . . . . . . . . . . . . . . . . . . . . . . . . . . . . . . 4 53 High Security 1 | . . . . . . . . . . . . . . . . . . . . . . . . . . . . . . . . . 2 14 Max Security . | . . . . . . . . . . . . . . . . . . . . . . . . . . . . . . . . . . . Squads Dispatched 125 | . . . . . 2 . 3 . 9 . 1 . 3 . . . . . . . . . 2 . 15 . 1 14 . 16 8 12 23 16 Investigation 23 | . . . . . 1 . . . 2 . 1 . 2 . . . . . . . . . . . 1 . 1 2 . 4 2 2 5 . Extermination 26 | . . . . . . . . . 1 . . . 1 . . . . . . . . . . . 3 . . 4 . 5 1 6 4 1 Reinforcement 27 | . . . . . . . 1 . 2 . . . . . . . . . . . . . . . 4 . . 5 . 2 1 4 7 1 Assault 24 | . . . . . . . . . 1 . . . . . . . . . . . . . . . 3 . . . . 2 . . 4 14 Garrison 25 | . . . . . 1 . 2 . 3 . . . . . . . . . . . . . 2 . 4 . . 3 . 3 4 . 3 . Intercept . | . . . . . . . . . . . . . . . . . . . . . . . . . . . . . . . . . . . Searches Triggered . | . . . . . . . . . . . . . . . . . . . . . . . . . . . . . . . . . . . Construction Impeded 8 | . . . . . . . . . 1 . . . . . . . . . . . . . . . 1 . . 1 . 1 1 1 2 . Haulers Reinforced 5 | . . . . . . . . . 1 . . . . . . . . . . . . . . . 1 . . . . . . 1 2 . Active Scanning Responses . | . . . . . . . . . . . . . . . . . . . . . . . . . . . . . . . . . . . Cargo Convoy Interrupts . | . . . . . . . . . . . . . . . . . . . . . . . . . . . . . . . . . . . Stealth | -11 -10 -10 -10 -9 -8 -8 -8 -8 -7 -7 -7 -7 -7 -7 -6 -6 -6 -6 -6 -6 -5 -5 -5 -5 -4 -4 -3 -3 -3 -2 -2 -2 -1 -1 --------- Run | Scr Mat Min Exi Min Mat Gar Mat Gar Fac Was Fac Gar Fac Gar Fac Was Fac Gar Fac Gar Fac Gar Fac Gar Fac Gar Res Tes Gar Res Qua Sec Acc Com Distress Signals 37 | . . . . . . . . . 2 . . . 1 . . . . . . . . . . 1 1 1 2 1 . 6 2 3 2 15 Communications Jammed . | . . . . . . . . . . . . . . . . . . . . . . . . . . . . . . . . . . . Distress Signals . | . . . . . . . . . . . . . . . . . . . . . . . . . . . . . . . . . . . Times Spotted 929 | . 5 10 . 4 15 27 18 29 42 6 9 27 7 25 1 . 3 12 . 29 9 31 7 40 50 34 13 34 32 80 41 82 94 113 Peak Tracking Total 20 | . 3 2 . 2 4 11 3 4 6 6 4 5 3 6 1 . 2 4 . 4 2 4 3 5 9 6 5 3 8 7 5 6 6 20 Tactical Retreats 46 | . . 1 . . . 2 . . 2 . . 1 2 . . . . . . . . 1 . 1 . 4 . 1 4 4 3 10 3 7 Traps | -11 -10 -10 -10 -9 -8 -8 -8 -8 -7 -7 -7 -7 -7 -7 -6 -6 -6 -6 -6 -6 -5 -5 -5 -5 -4 -4 -3 -3 -3 -2 -2 -2 -1 -1 ------- Run | Scr Mat Min Exi Min Mat Gar Mat Gar Fac Was Fac Gar Fac Gar Fac Was Fac Gar Fac Gar Fac Gar Fac Gar Fac Gar Res Tes Gar Res Qua Sec Acc Com Traps Triggered 66 | . . . . . . 6 . 8 5 . . 9 . 4 1 . . 5 2 4 . 2 . 4 1 2 . 1 3 6 . 2 . 1 Indirectly . | . . . . . . . . . . . . . . . . . . . . . . . . . . . . . . . . . . . Trap Hack Attempts . | . . . . . . . . . . . . . . . . . . . . . . . . . . . . . . . . . . . Triggered . | . . . . . . . . . . . . . . . . . . . . . . . . . . . . . . . . . . . Disarmed . | . . . . . . . . . . . . . . . . . . . . . . . . . . . . . . . . . . . Reprogrammed . | . . . . . . . . . . . . . . . . . . . . . . . . . . . . . . . . . . . Reused . | . . . . . . . . . . . . . . . . . . . . . . . . . . . . . . . . . . . Traps Extracted . | . . . . . . . . . . . . . . . . . . . . . . . . . . . . . . . . . . . Installed . | . . . . . . . . . . . . . . . . . . . . . . . . . . . . . . . . . . . Triggered . | . . . . . . . . . . . . . . . . . . . . . . . . . . . . . . . . . . . Machines | -11 -10 -10 -10 -9 -8 -8 -8 -8 -7 -7 -7 -7 -7 -7 -6 -6 -6 -6 -6 -6 -5 -5 -5 -5 -4 -4 -3 -3 -3 -2 -2 -2 -1 -1 ---------- Run | Scr Mat Min Exi Min Mat Gar Mat Gar Fac Was Fac Gar Fac Gar Fac Was Fac Gar Fac Gar Fac Gar Fac Gar Fac Gar Res Tes Gar Res Qua Sec Acc Com Machines Disabled 125 | . . 1 . . 2 4 . 4 3 . . 4 . 6 6 . . 4 . 4 . 7 5 9 7 4 2 5 4 4 8 19 8 5 Max in Single Turn 4 | . . 1 . . 1 1 . 1 3 . . 1 . 2 4 . . 1 . 1 . 2 4 2 4 1 1 1 1 2 1 2 2 2 Garrison Access 2 | . . . . . . . . . 1 . . . . . . . . . . . . . . . . . . . . . . . 1 . Garrison Relay 39 | . . . . . . 4 . 4 . . . 4 . 3 . . . 4 . 4 . 4 . 4 . 4 . . 4 . . . . . Phase Generator 4 | . . . . . . . . . . . . . . 1 . . . . . . . 1 . 1 . . . . . . . . . 1 Energy Cycler 1 | . . . . . . . . . . . . . . . . . . . . . . . . . . . . . . . . . 1 . Machines Sabotaged . | . . . . . . . . . . . . . . . . . . . . . . . . . . . . . . . . . . . Garrisons Compromised . | . . . . . . . . . . . . . . . . . . . . . . . . . . . . . . . . . . . Overloaded Fab Kills . | . . . . . . . . . . . . . . . . . . . . . . . . . . . . . . . . . . . Hacking | -11 -10 -10 -10 -9 -8 -8 -8 -8 -7 -7 -7 -7 -7 -7 -6 -6 -6 -6 -6 -6 -5 -5 -5 -5 -4 -4 -3 -3 -3 -2 -2 -2 -1 -1 --------- Run | Scr Mat Min Exi Min Mat Gar Mat Gar Fac Was Fac Gar Fac Gar Fac Was Fac Gar Fac Gar Fac Gar Fac Gar Fac Gar Res Tes Gar Res Qua Sec Acc Com Machines Accessed 101 | . 3 . . 2 5 . 3 . 4 . 7 . 4 . 1 . 3 . 1 . 2 . 2 . 6 . 3 9 . 3 14 15 11 3 Terminals 82 | . 3 . . 2 4 . 2 . 4 . 6 . 3 . 1 . 2 . . . 1 . 1 . 5 . 3 6 . 1 12 13 10 3 Fabricators 4 | . . . . . . . . . . . . . . . . . . . . . . . . . . . . 2 . 2 . . . . Repair Stations . | . . . . . . . . . . . . . . . . . . . . . . . . . . . . . . . . . . . Recycling Units . | . . . . . . . . . . . . . . . . . . . . . . . . . . . . . . . . . . . Scanalyzers 4 | . . . . . . . . . . . . . . . . . . . . . . . . . . . . . . . 2 2 . . Garrison Access 11 | . . . . . 1 . 1 . . . 1 . 1 . . . 1 . 1 . 1 . 1 . 1 . . 1 . . . . 1 . Total Hacks 229 | . 6 . . 6 17 . 10 . 13 . 16 . 9 . 2 . 6 . 1 . 2 . 4 . 15 . 7 18 . 8 27 29 27 6 Successful 129 | . 3 . . 4 10 . 5 . 8 . 12 . 6 . 2 . 3 . 1 . 2 . 3 . 7 . 2 9 . 4 16 19 10 3 Failed 100 | . 3 . . 2 7 . 5 . 5 . 4 . 3 . . . 3 . . . . . 1 . 8 . 5 9 . 4 11 10 17 3 Catastrophic 13 | . . . . . 2 . . . 2 . 1 . . . . . . . . . . . . . 2 . 3 . . . . . 2 1 Database Lockouts . | . . . . . . . . . . . . . . . . . . . . . . . . . . . . . . . . . . . Manual 162 | . 6 . . 6 11 . 9 . 13 . 7 . 7 . 2 . 4 . . . . . 2 . 14 . 5 17 . 6 19 18 14 2 Terminals 206 | . 6 . . 6 16 . 9 . 13 . 15 . 8 . 2 . 5 . . . 1 . 3 . 14 . 7 15 . 4 25 25 26 6 Fabricators 6 | . . . . . . . . . . . . . . . . . . . . . . . . . . . . 2 . 4 . . . . Repair Stations . | . . . . . . . . . . . . . . . . . . . . . . . . . . . . . . . . . . . Recycling Units . | . . . . . . . . . . . . . . . . . . . . . . . . . . . . . . . . . . . Scanalyzers 6 | . . . . . . . . . . . . . . . . . . . . . . . . . . . . . . . 2 4 . . Garrison Access 11 | . . . . . 1 . 1 . . . 1 . 1 . . . 1 . 1 . 1 . 1 . 1 . . 1 . . . . 1 . Terminal Hacks 50 | . 3 . . 4 5 . 2 . 4 . 5 . 3 . 1 . . . . . 1 . 1 . 2 . . . . 1 5 9 2 2 Record 1 | . . . . . . . . . . . . . . . . . . . . . . . . . . . . . . . 1 . . . Prototype ID Bank 8 | . 2 . . 3 2 . . . . . . . . . . . . . . . . . . . . . . . . . . 1 . . Open Door 7 | . . . . . . . . . . . . . . . . . . . . . . . . . . . . . . . 1 5 . 1 Open DSF 2 | . . . . . . . . . . . . . 1 . . . . . . . 1 . . . . . . . . . . . . . Level Access Points 1 | . . . . . . . . . . . . . . . . . . . . . . . . . . . . . . . . . 1 . Branch Access Points 1 | . . . . . 1 . . . . . . . . . . . . . . . . . . . . . . . . . . . . . Garrison Index 1 | . . . . . . . . . 1 . . . . . . . . . . . . . . . . . . . . . . . . . Unreport Threat 21 | . 1 . . 1 2 . 2 . 3 . 2 . . . 1 . . . . . . . . . 2 . . . . 1 3 2 1 . Locate Traps 3 | . . . . . . . . . . . 2 . . . . . . . . . . . 1 . . . . . . . . . . . Registered Components 1 | . . . . . . . . . . . . . 1 . . . . . . . . . . . . . . . . . . . . . Registered Prototypes 2 | . . . . . . . . . . . 1 . 1 . . . . . . . . . . . . . . . . . . . . . Zone Layout 1 | . . . . . . . . . . . . . . . . . . . . . . . . . . . . . . . . 1 . . Disengage Seal 1 | . . . . . . . . . . . . . . . . . . . . . . . . . . . . . . . . . . 1 Fabricator Hacks . | . . . . . . . . . . . . . . . . . . . . . . . . . . . . . . . . . . . Repair Station Hacks . | . . . . . . . . . . . . . . . . . . . . . . . . . . . . . . . . . . . Recycling Unit Hacks . | . . . . . . . . . . . . . . . . . . . . . . . . . . . . . . . . . . . Scanalyzer 5 | . . . . . . . . . . . . . . . . . . . . . . . . . . . . . . . 2 3 . . Insert Component 5 | . . . . . . . . . . . . . . . . . . . . . . . . . . . . . . . 2 3 . . Garrison Access Hacks 11 | . . . . . 1 . 1 . . . 1 . 1 . . . 1 . 1 . 1 . 1 . 1 . . 1 . . . . 1 . Unlock Access 10 | . . . . . 1 . 1 . . . 1 . 1 . . . 1 . 1 . 1 . 1 . 1 . . 1 . . . . . . Seal Access 1 | . . . . . . . . . . . . . . . . . . . . . . . . . . . . . . . . . 1 . Unauthorized Hacks 63 | . . . . . 4 . 2 . 4 . 6 . 2 . 1 . 2 . . . . . 1 . 4 . 2 8 . 3 9 7 7 1 Terminals 59 | . . . . . 4 . 2 . 4 . 6 . 2 . 1 . 2 . . . . . 1 . 4 . 2 6 . 1 9 7 7 1 Assimilate 3 | . . . . . . . . . . . . . . . . . . . . . . . . . 1 . . 1 . . . 1 . . Botnet 56 | . . . . . 4 . 2 . 4 . 6 . 2 . 1 . 2 . . . . . 1 . 3 . 2 5 . 1 9 6 7 1 Fabricators 4 | . . . . . . . . . . . . . . . . . . . . . . . . . . . . 2 . 2 . . . . Liberate 4 | . . . . . . . . . . . . . . . . . . . . . . . . . . . . 2 . 2 . . . . Repair Stations . | . . . . . . . . . . . . . . . . . . . . . . . . . . . . . . . . . . . Recycling Units . | . . . . . . . . . . . . . . . . . . . . . . . . . . . . . . . . . . . Scanalyzers . | . . . . . . . . . . . . . . . . . . . . . . . . . . . . . . . . . . . Garrison Access . | . . . . . . . . . . . . . . . . . . . . . . . . . . . . . . . . . . . Data Cores Recovered 7 | . . . . . 1 . . . 1 . . . . . . . 1 . . . . . 1 . . . . . . . . 2 1 . Used 2 | . . . . . . . . . . . . . . . . . 1 . . . . . . . . . . . . . . 1 . . Hacking Detections 82 | . 3 . . 2 4 . 2 . 4 . 7 . 2 . 1 . 2 . 1 . 1 . 1 . 5 . 3 9 . 2 12 9 10 2 Full Trace Events 18 | . . . . . 1 . . . 2 . 1 . 1 . . . . . . . . . . . 1 . 1 2 . 1 2 2 4 . Feedback Events 4 | . . . . . . . . . . . . . . . . . . . . . . . . . . . . 1 . 1 . . 2 . Corruption 4 | . . . . . . . . . . . . . . . . . . . . . . . . . . . . 1 . 1 . . 2 . Feedback Blocked . | . . . . . . . . . . . . . . . . . . . . . . . . . . . . . . . . . . . Robot Schematics Acquired 4 | . . . . . . . . . . . . . . . . . . . . . . . . . . . . 1 . . 2 1 . . Robots Built . | . . . . . . . . . . . . . . . . . . . . . . . . . . . . . . . . . . . Authchips . | . . . . . . . . . . . . . . . . . . . . . . . . . . . . . . . . . . . Time . | . . . . . . . . . . . . . . . . . . . . . . . . . . . . . . . . . . . Total Robot Build Rating . | . . . . . . . . . . . . . . . . . . . . . . . . . . . . . . . . . . . Part Schematics Acquired 11 | . . . . . . . . . . . . . . . . . . . . . . . . . . . . 4 . . 1 6 . . Parts Built . | . . . . . . . . . . . . . . . . . . . . . . . . . . . . . . . . . . . Authchips . | . . . . . . . . . . . . . . . . . . . . . . . . . . . . . . . . . . . Time . | . . . . . . . . . . . . . . . . . . . . . . . . . . . . . . . . . . . Total Part Build Rating . | . . . . . . . . . . . . . . . . . . . . . . . . . . . . . . . . . . . Parts Repaired . | . . . . . . . . . . . . . . . . . . . . . . . . . . . . . . . . . . . Time . | . . . . . . . . . . . . . . . . . . . . . . . . . . . . . . . . . . . Parts Recycled . | . . . . . . . . . . . . . . . . . . . . . . . . . . . . . . . . . . . Recycled Matter . | . . . . . . . . . . . . . . . . . . . . . . . . . . . . . . . . . . . Retrieved Matter . | . . . . . . . . . . . . . . . . . . . . . . . . . . . . . . . . . . . Retrieved Components . | . . . . . . . . . . . . . . . . . . . . . . . . . . . . . . . . . . . Parts Scanalyzed . | . . . . . . . . . . . . . . . . . . . . . . . . . . . . . . . . . . . Part Schematics Acquired . | . . . . . . . . . . . . . . . . . . . . . . . . . . . . . . . . . . . Parts Damaged . | . . . . . . . . . . . . . . . . . . . . . . . . . . . . . . . . . . . Bothacking | -11 -10 -10 -10 -9 -8 -8 -8 -8 -7 -7 -7 -7 -7 -7 -6 -6 -6 -6 -6 -6 -5 -5 -5 -5 -4 -4 -3 -3 -3 -2 -2 -2 -1 -1 ------------ Run | Scr Mat Min Exi Min Mat Gar Mat Gar Fac Was Fac Gar Fac Gar Fac Was Fac Gar Fac Gar Fac Gar Fac Gar Fac Gar Res Tes Gar Res Qua Sec Acc Com Used RIF Installer 10 | . . . . . . 1 . 1 . . . 1 . 1 . . . 1 . 1 . 1 . 1 . 1 . . 1 . . . . . Coupler Efficiency 3 | . . . . . . . . . . . . 1 . . . . . . . 1 . . . . . 1 . . . . . . . . Hotswap 1 | . . . . . . . . . . . . . . . . . . 1 . . . . . . . . . . . . . . . . Command Fork 1 | . . . . . . . . . . . . . . . . . . . . . . . . . . . . . 1 . . . . . Zone Cloak 1 | . . . . . . . . 1 . . . . . . . . . . . . . . . . . . . . . . . . . . Robot Detection 1 | . . . . . . . . . . . . . . 1 . . . . . . . . . . . . . . . . . . . . Autooverride 1 | . . . . . . . . . . . . . . . . . . . . . . . . 1 . . . . . . . . . . Autoassimilate 1 | . . . . . . . . . . . . . . . . . . . . . . 1 . . . . . . . . . . . . Robots Hacked 11 | . . . . . . . . . . . . . . . . . . . . . . . . 3 2 . 1 1 2 1 . . . 1 Non-combat 1 | . . . . . . . . . . . . . . . . . . . . . . . . . . . 1 . . . . . . . Combat 10 | . . . . . . . . . . . . . . . . . . . . . . . . 3 2 . . 1 2 1 . . . 1 Autooverrided 5 | . . . . . . . . . . . . . . . . . . . . . . . . 1 2 . . . 1 1 . . . . Autoassimilated 4 | . . . . . . . . . . . . . . . . . . . . . . . . 2 . . . 1 1 . . . . . Robot Hacks Applied 2 | . . . . . . . . . . . . . . . . . . . . . . . . . . . 1 . . . . . . 1 parse_system 1 | . . . . . . . . . . . . . . . . . . . . . . . . . . . . . . . . . . 1 no_distress 1 | . . . . . . . . . . . . . . . . . . . . . . . . . . . 1 . . . . . . . Relay Couplers Released 72 | . . . . . . 7 . 7 . . . 8 . 6 . . . 8 . 7 . 8 . 8 . 6 . . 7 . . . . . Machine Destruction 72 | . . . . . . 7 . 7 . . . 8 . 6 . . . 8 . 7 . 8 . 8 . 6 . . 7 . . . . . Attached 2 | . . . . . . . . . . . . . . . . . . . . . . 1 . . . . . . 1 . . . . . Fabnet Peak Effective % . | . . . . . . . . . . . . . . . . . . . . . . . . . . . . . . . . . . . Robots Rewired 16 | . . . . . . . . . . . . 6 . . . . . 3 . . . . . 6 . . . 1 . . . . . . Allies Hacked 1 | . . . . . . . . . . . . . . . . . . . . . . . . . . . . . 1 . . . . . Hacks Repelled . | . . . . . . . . . . . . . . . . . . . . . . . . . . . . . . . . . . . Allies | -11 -10 -10 -10 -9 -8 -8 -8 -8 -7 -7 -7 -7 -7 -7 -6 -6 -6 -6 -6 -6 -5 -5 -5 -5 -4 -4 -3 -3 -3 -2 -2 -2 -1 -1 -------- Run | Scr Mat Min Exi Min Mat Gar Mat Gar Fac Was Fac Gar Fac Gar Fac Was Fac Gar Fac Gar Fac Gar Fac Gar Fac Gar Res Tes Gar Res Qua Sec Acc Com Total Allies 57 | . . . . . . . . . . 1 . 6 . . . 20 . 3 . . . . . 9 3 . . 8 2 4 . 1 . . Largest Group 20 | . . . . . . . . . . 1 . 6 6 1 . 20 20 20 3 3 . . . 6 5 1 . 4 3 3 . 1 . . Highest-Rated Group 687 | . . . . . . . . . . 31 . 120 120 20 . 687 687 687 109 109 . . . 234 205 21 . 246 159 138 . 26 . . Highest-Rated Ally 114 | . . . . . . . . . . 31 . 20 20 20 . 50 50 50 41 41 . . . 49 58 21 . 114 56 58 . 26 . . Total Orders . | . . . . . . . . . . . . . . . . . . . . . . . . . . . . . . . . . . . Ally Attacks 296 | . . . . . . . . . . 10 . . 23 2 . . 17 106 . 17 . . . 28 18 . . 36 12 27 . . . . Total Damage 7832 | . . . . . . . . . . 186 . . 532 . . . 239 2794 . 810 . . . 452 646 . . 1067 448 658 . . . . Kills 49 | . . . . . . . . . . . . . 4 . . . 7 18 . 7 . . . 1 1 . . 6 2 3 . . . . Allies Corrupted . | . . . . . . . . . . . . . . . . . . . . . . . . . . . . . . . . . . . Allies Melted . | . . . . . . . . . . . . . . . . . . . . . . . . . . . . . . . . . . . Intel | -11 -10 -10 -10 -9 -8 -8 -8 -8 -7 -7 -7 -7 -7 -7 -6 -6 -6 -6 -6 -6 -5 -5 -5 -5 -4 -4 -3 -3 -3 -2 -2 -2 -1 -1 ------- Run | Scr Mat Min Exi Min Mat Gar Mat Gar Fac Was Fac Gar Fac Gar Fac Was Fac Gar Fac Gar Fac Gar Fac Gar Fac Gar Res Tes Gar Res Qua Sec Acc Com Robot Analysis Total . | . . . . . . . . . . . . . . . . . . . . . . . . . . . . . . . . . . . Derelict Logs Recovered 1 | . . 1 . . . . . . . . . . . . . . . . . . . . . . . . . . . . . . . . Drone Launches . | . . . . . . . . . . . . . . . . . . . . . . . . . . . . . . . . . . . Drone Recoveries . | . . . . . . . . . . . . . . . . . . . . . . . . . . . . . . . . . . . Exploration | -11 -10 -10 -10 -9 -8 -8 -8 -8 -7 -7 -7 -7 -7 -7 -6 -6 -6 -6 -6 -6 -5 -5 -5 -5 -4 -4 -3 -3 -3 -2 -2 -2 -1 -1 ------------- Run | Scr Mat Min Exi Min Mat Gar Mat Gar Fac Was Fac Gar Fac Gar Fac Was Fac Gar Fac Gar Fac Gar Fac Gar Fac Gar Res Tes Gar Res Qua Sec Acc Com Turns Passed 35340 | 192 181 1012 319 225 643 1469 348 942 1455 55 226 849 341 428 141 280 243 1842 244 1109 520 1439 523 1298 1475 1457 739 2054 977 2246 2429 3134 2350 2155 Spaces Moved 24446 | 135 131 716 266 156 397 1032 194 584 885 136 425 991 329 628 274 331 210 927 192 763 356 1015 367 841 941 724 524 1242 631 1523 1705 2019 1515 1341 Core 6 | 5 . . . . . . . . 1 . . . . . . . . . . . . . . . . . . . . . . . . . Treads . | . . . . . . . . . . . . . . . . . . . . . . . . . . . . . . . . . . . Legs 20832 | 130 131 716 266 156 397 1032 194 584 741 . . . . . . . . 786 192 763 356 1015 367 841 941 724 524 1242 631 1523 1705 2019 1515 1341 Wheels . | . . . . . . . . . . . . . . . . . . . . . . . . . . . . . . . . . . . Hover 3608 | . . . . . . . . . 143 136 425 991 329 628 274 331 210 141 . . . . . . . . . . . . . . . . Flight . | . . . . . . . . . . . . . . . . . . . . . . . . . . . . . . . . . . . Fastest Speed 36 | 50 120 120 120 120 120 122 122 122 98 36 36 36 40 36 36 38 98 98 120 120 120 120 120 120 120 120 120 120 120 111 115 120 120 120 Average Speed 113 | 122 120 120 120 120 132 122 122 122 122 39 36 41 40 36 37 66 98 175 124 120 120 120 120 120 122 157 123 120 120 114 116 120 120 120 Slowest Speed 850 | 190 120 120 120 120 190 122 122 122 850 98 36 103 40 40 38 98 98 260 190 120 120 120 120 190 190 190 190 120 120 185 120 120 120 120 Overloaded Moves . | . . . . . . . . . . . . . . . . . . . . . . . . . . . . . . . . . . . Propulsion Burnouts . | . . . . . . . . . . . . . . . . . . . . . . . . . . . . . . . . . . . Robots Hopped . | . . . . . . . . . . . . . . . . . . . . . . . . . . . . . . . . . . . Cave-ins Triggered . | . . . . . . . . . . . . . . . . . . . . . . . . . . . . . . . . . . . Teleports 1 | . . . . . . . . . . . . . . . . . . . . . . . . . . . . . . . . 1 . . Exploration Rate (%) 54 | 5 23 94 67 50 35 87 26 81 24 88 11 73 8 97 10 85 8 90 4 84 13 99 11 99 30 85 11 93 89 35 94 95 46 50 Regions Visited 34 Branch Regions 7 Pre-discovered Areas 1 | . . 1 . . . . . . . . . . . . . . . . . . . . . . . . . . . . . . . . Known Exits Taken 20 | 1 1 1 1 1 1 . 1 . . . 1 . 1 . . . 1 . 1 . 1 . 1 . 1 . 1 1 . 1 1 1 1 . Unknown Exits Taken . | . . . . . . . . . . . . . . . . . . . . . . . . . . . . . . . . . . . Scrap Searched 3 | . . 3 . . . . . . . . . . . . . . . . . . . . . . . . . . . . . . . . Spaces Dug 35 | . . . . . . . . . . . . 3 . . . . . . . . . . 2 . 4 . . . . 6 2 . 8 10 Terrain Destroyed 1247 | . . . . . . 2 1 2 19 . . 3 . 21 33 . . 9 . 23 21 69 40 111 93 64 4 9 24 51 17 108 353 170 Melee . | . . . . . . . . . . . . . . . . . . . . . . . . . . . . . . . . . . . Projectile 799 | . . . . . . 2 1 2 1 . . 3 . 15 4 . . 9 . 22 21 11 14 56 69 64 . 4 18 40 15 59 277 92 AOE 405 | . . . . . . . . . 18 . . . . 6 29 . . . . . . 56 26 55 24 . . . . . . 39 76 76 Terrain Rammed 1 | . . . . . . . . . . . . . . . . . . . . . . . . . . . . 1 . . . . . . Walls Destroyed . | . . . . . . . . . . . . . . . . . . . . . . . . . . . . . . . . . . . Machines Disabled 1 | . . . . . . . . . . . . . . . . . . . . . . . . . . . . 1 . . . . . . Actions | -11 -10 -10 -10 -9 -8 -8 -8 -8 -7 -7 -7 -7 -7 -7 -6 -6 -6 -6 -6 -6 -5 -5 -5 -5 -4 -4 -3 -3 -3 -2 -2 -2 -1 -1 --------- Run | Scr Mat Min Exi Min Mat Gar Mat Gar Fac Was Fac Gar Fac Gar Fac Was Fac Gar Fac Gar Fac Gar Fac Gar Fac Gar Res Tes Gar Res Qua Sec Acc Com Total 29157 | 148 141 804 267 178 455 1141 241 725 1087 136 458 1299 517 727 296 395 242 1113 195 870 422 1138 426 1016 1119 896 580 1722 751 1816 1978 2425 1783 1650 Wait 1335 | . . 10 . 10 2 20 1 32 19 . 1 101 179 3 5 23 31 91 . 8 21 19 43 26 19 1 8 328 26 72 72 75 43 46 Move 24407 | 134 130 715 265 155 396 1030 194 582 885 135 424 989 328 626 274 330 209 925 191 761 355 1013 367 839 941 722 523 1242 629 1522 1704 2018 1514 1340 Hop . | . . . . . . . . . . . . . . . . . . . . . . . . . . . . . . . . . . . Pick Up 91 | . 1 3 1 . 2 2 1 3 4 . . 2 . 1 . 4 . 4 1 2 2 4 . 6 3 3 3 6 2 6 4 10 8 3 Fast Attach 208 | 8 2 2 . . 6 1 . . 20 1 4 8 1 2 2 4 . 6 3 3 1 . 1 3 5 4 1 24 2 22 27 31 9 5 Attach 20 | . . 1 . . . . . . . . . . . . . . . . . . . 1 . . 1 . 1 4 . . . 5 2 5 Detach 41 | . . . . . . . . . 1 . . 2 1 . 1 3 . . . . 1 . . . 2 . 1 10 . 2 3 5 3 6 Swap 53 | . . 3 . . 3 . . . 3 . . 3 . . 1 . . . . 2 1 1 . 2 1 2 1 1 2 1 1 11 1 13 Drop 241 | . . 5 1 . 7 1 1 1 20 . 2 12 . . 2 9 . 10 . 5 4 3 2 6 7 8 3 26 4 25 28 27 14 8 Fire 1588 | 6 8 38 . 7 24 45 28 39 76 . 18 57 8 40 7 . 2 15 . 40 16 56 13 60 83 85 22 51 55 117 120 172 148 132 Melee 5 | . . . . . . . . . . . . . . . . . . . . 1 . . . . . . 4 . . . . . . . Ram 1 | . . . . . . . . . . . . . . . . . . . . . . . . . . . . 1 . . . . . . Kick 31 | . . 3 . 1 5 . 2 . 6 . . . . . . . . . . . . . . . 3 . 1 2 1 . . 2 5 . Crush . | . . . . . . . . . . . . . . . . . . . . . . . . . . . . . . . . . . . Escape Stasis 256 | . . . . . . 15 . 40 . . . 78 . 39 . . . 23 . 20 . 3 . 9 4 10 . . 9 . . 1 . 5 Rewire 84 | . . . . . . . . . . . . 20 . . . . . 23 . 17 . . . 23 . . . 1 . . . . . . Trap . | . . . . . . . . . . . . . . . . . . . . . . . . . . . . . . . . . . . Miscellaneous 796 | . . 24 . 5 10 27 14 28 53 . 9 27 . 16 4 22 . 16 . 11 21 38 . 42 50 61 12 26 21 49 19 68 36 87 Route ------- -11/Scrapyard -10/Materials -10/Mines (discovered 3 exits: *Mat x2 / *Exi) -10/Exiles (discovered 2 exits: *Min x2) -9/Mines -8/Materials -8/Garrison (discovered 3 exits: *Mat x3) -8/Materials -8/Garrison (discovered 3 exits: *Fac x3) -7/Factory -7/Waste -7/Factory -7/Garrison (discovered 3 exits: *Fac x3) -7/Factory -7/Garrison (discovered 3 exits: *Fac x3) -6/Factory -6/Waste -6/Factory -6/Garrison (discovered 3 exits: *Fac x3) -6/Factory -6/Garrison (discovered 3 exits: *Fac x3) -5/Factory (discovered 2 exits: *Fac / Gar) -5/Garrison (discovered 3 exits: *Fac x3) -5/Factory -5/Garrison (discovered 3 exits: *Fac x3) -4/Factory (discovered 3 exits: *Res / *Upp / Gar) -4/Garrison (discovered 3 exits: *Res x3) -3/Research -3/Testing (discovered 2 exits: *Res / Gar) -3/Garrison (discovered 3 exits: *Res x3) -2/Research (discovered 2 exits: *Acc / *Qua) -2/Quarantine (discovered 2 exits: *Acc / *Sec) -2/Section 7 -1/Access (discovered 2 exits: Sur / *Com) -1/Command (discovered 2 exits: *Sur x2) 0b11 Command History --------- Turn | Location | Event 5 | -11/Scrapyard | Upgraded with Propulsion slot (x1) 5 | -11/Scrapyard | Upgraded with Utility slot (x1) 5 | -11/Scrapyard | Upgraded with Weapon slot (x1) 5 | -11/Scrapyard | Identified exit to Materials 5 | -11/Scrapyard | Discovered exit to Materials (range 16) 140 | -11/Scrapyard | Upgraded with Utility slot (x1) 193 | -11/Scrapyard | Entered Materials 238 | -10/Materials | Upgraded with Utility slot (x1) 239 | -10/Materials | Upgraded with Propulsion slot (x1) 304 | -10/Materials | Identified exit to Mines 304 | -10/Materials | Discovered exit to Mines (range 15) 316 | -10/Materials | Build established: Hacker-Mutant 355 | -10/Materials | Upgraded with Power slot (x1) 374 | -10/Materials | Entered Mines 406 | -10/Mines | Found a damaged Exp. Sensor Array with a note attached 416 | -10/Mines | Identified exit to Materials 416 | -10/Mines | Discovered exit to Materials (range 11) 463 | -10/Mines | Learned location of Storage (-7) 497 | -10/Mines | Received a Rocket Launcher from a helpful Derelict 696 | -10/Mines | Learned 2 Materials zone layouts 915 | -10/Mines | Reached level 2 932 | -10/Mines | Upgraded with Weapon slot (x1) 984 | -10/Mines | Discovered exit to Materials (range 10) 1240 | -10/Mines | Build established: Scavenger-Gunner 1381 | -10/Mines | Deemed a non-threat by the Exiles lab entrance 1381 | -10/Mines | Identified exit to Exiles 1381 | -10/Mines | Discovered exit to Exiles (range 5) 1386 | -10/Mines | Entered Exiles 1404 | -10/Exiles | Identified exit to Mines 1404 | -10/Exiles | Discovered exit to Mines (range 15) 1416 | -10/Exiles | Met 8R-AWN 1437 | -10/Exiles | Met EX-HEX 1484 | -10/Exiles | Met EX-DEC 1555 | -10/Exiles | Met EX-BIN 1693 | -10/Exiles | Discovered exit to Mines (range 10) 1705 | -10/Exiles | Entered Mines 1727 | -9/Mines | Met a Derelict bent on vengeance 1734 | -9/Mines | Reached level 3 1845 | -9/Mines | Assembled infested the area 1850 | -9/Mines | Assisted by a Guerilla fighting off Assembled 1901 | -9/Mines | Identified exit to Materials 1901 | -9/Mines | Discovered exit to Materials (range 11) 1930 | -9/Mines | Entered Materials 1932 | -8/Materials | Reached level 4 1932 | -8/Materials | Reached level 5 1932 | -8/Materials | Reached level 6 1945 | -8/Materials | Upgraded with Propulsion slot (x1) 2040 | -8/Materials | Upgraded with Utility slot (x2) 2128 | -8/Materials | Upgraded with Weapon slot (x1) 2462 | -8/Materials | Reached level 7 2523 | -8/Materials | Garrison activated, responded to threat 2571 | -8/Materials | Identified exit to Garrison 2573 | -8/Materials | Entered Garrison 2638 | -8/Garrison | Triggered checkpoint 2745 | -8/Garrison | Garrison Relay disabled 2745 | -8/Garrison | Reached level 8 2751 | -8/Garrison | Upgraded with Utility slot (x1) 2822 | -8/Garrison | Triggered checkpoint 2864 | -8/Garrison | Destroyed 8 combat bots 2938 | -8/Garrison | Triggered checkpoint 2955 | -8/Garrison | Identified exit to Materials 2955 | -8/Garrison | Discovered exit to Materials (range 15) 3030 | -8/Garrison | Triggered checkpoint 3037 | -8/Garrison | Reached level 9 3136 | -8/Garrison | Triggered checkpoint 3240 | -8/Garrison | Triggered checkpoint 3257 | -8/Garrison | Garrison Relay disabled 3296 | -8/Garrison | Discovered exit to Materials (range 10) 3354 | -8/Garrison | Triggered checkpoint 3398 | -8/Garrison | Triggered checkpoint 3404 | -8/Garrison | Reached level 10 3429 | -8/Garrison | Garrison Relay disabled 3510 | -8/Garrison | Discovered exit to Materials (range 9) 3531 | -8/Garrison | Installed Relay Interface Framework 4042 | -8/Garrison | Entered Materials 4152 | -8/Materials | Reached level 11 4289 | -8/Materials | Garrison activated, responded to threat 4390 | -8/Materials | Identified exit to Garrison 4390 | -8/Materials | Entered Garrison 4530 | -8/Garrison | Triggered checkpoint 4569 | -8/Garrison | Garrison Relay disabled 4632 | -8/Garrison | Triggered checkpoint 4642 | -8/Garrison | Reached level 12 4691 | -8/Garrison | Destroyed 8 combat bots 4772 | -8/Garrison | Triggered checkpoint 4784 | -8/Garrison | Garrison Relay disabled 4844 | -8/Garrison | Triggered checkpoint 4855 | -8/Garrison | Identified exit to Factory 4855 | -8/Garrison | Discovered exit to Factory (range 15) 4863 | -8/Garrison | Upgraded with Utility slot (x1) 4946 | -8/Garrison | Triggered checkpoint 5007 | -8/Garrison | Discovered exit to Factory (range 9) 5046 | -8/Garrison | Triggered checkpoint 5094 | -8/Garrison | Garrison Relay disabled 5144 | -8/Garrison | Triggered checkpoint 5205 | -8/Garrison | Discovered exit to Factory (range 9) 5238 | -8/Garrison | Expanded RIF knowledge: Zone Cloak 5273 | -8/Garrison | Garrison Relay disabled 5273 | -8/Garrison | Reached level 13 5292 | -8/Garrison | Triggered checkpoint 5332 | -8/Garrison | Entered Factory 5334 | -7/Factory | Reached level 14 5550 | -7/Factory | Identified exit to Lower Caves 5550 | -7/Factory | Discovered exit to Lower Caves (range 5) 5607 | -7/Factory | Garrison activated, responded to threat 5895 | -7/Factory | Reached level 15 6263 | -7/Factory | Build established: Scavenger-Skirmisher 6537 | -7/Factory | Garrison activated, responded to threat 6549 | -7/Factory | Upgraded with Propulsion slot (x1) 6591 | -7/Factory | Destroyed 7 combat bots 6787 | -7/Factory | Sucked down chute 6787 | -7/Factory | Entered Waste 6788 | -7/Waste | Met a frightened Derelict 6800 | -7/Waste | Spotted C-40 Crusher 6802 | -7/Waste | EMP discharged 6807 | -7/Waste | Spotted C-40 Crusher 6808 | -7/Waste | Spotted C-40 Crusher 6818 | -7/Waste | Spotted C-40 Crusher 6827 | -7/Waste | Spotted C-40 Crusher 6828 | -7/Waste | Spotted C-40 Crusher 6835 | -7/Waste | Crushed by Compactor (1 part destroyed, 1 dropped) 6838 | -7/Waste | Identified exit to Factory 6838 | -7/Waste | Discovered exit to Factory (range 12) 6842 | -7/Waste | Entered Factory 6938 | -7/Factory | Reached level 16 7068 | -7/Factory | Identified exit to Garrison 7068 | -7/Factory | Entered Garrison 7074 | -7/Garrison | Triggered checkpoint 7090 | -7/Garrison | Garrison Relay disabled 7178 | -7/Garrison | Triggered checkpoint 7183 | -7/Garrison | Triggered checkpoint 7283 | -7/Garrison | Garrison Relay disabled 7296 | -7/Garrison | Triggered checkpoint 7336 | -7/Garrison | Build established: Scavenger-Scout 7339 | -7/Garrison | Identified exit to Factory 7339 | -7/Garrison | Discovered exit to Factory (range 15) 7349 | -7/Garrison | Expanded RIF knowledge: Coupler Efficiency 7376 | -7/Garrison | Triggered checkpoint 7422 | -7/Garrison | Garrison Relay disabled 7438 | -7/Garrison | Discovered exit to Factory (range 11) 7480 | -7/Garrison | Garrison Relay disabled 7494 | -7/Garrison | Triggered checkpoint 7494 | -7/Garrison | Reached level 17 7588 | -7/Garrison | Triggered checkpoint 7621 | -7/Garrison | Discovered exit to Factory (range 14) 7672 | -7/Garrison | Triggered checkpoint 7732 | -7/Garrison | Triggered checkpoint 7917 | -7/Garrison | Entered Factory 7917 | -7/Factory | Accompanied by 6 allies 7963 | -7/Factory | Upgraded with Propulsion slot (x1) 8257 | -7/Factory | Identified exit to Garrison 8258 | -7/Factory | Entered Garrison 8258 | -7/Garrison | Accompanied by 1 ally 8286 | -7/Garrison | Phase Generator disabled 8298 | -7/Garrison | Upgraded with Power slot (x1) 8302 | -7/Garrison | Triggered checkpoint 8402 | -7/Garrison | Triggered checkpoint 8437 | -7/Garrison | Destroyed 11 combat bots 8440 | -7/Garrison | Triggered checkpoint 8440 | -7/Garrison | Garrison Relay disabled 8469 | -7/Garrison | Identified exit to Factory 8469 | -7/Garrison | Discovered exit to Factory (range 10) 8487 | -7/Garrison | Triggered checkpoint 8520 | -7/Garrison | Triggered checkpoint 8543 | -7/Garrison | Garrison Relay disabled 8580 | -7/Garrison | Discovered exit to Factory (range 15) 8588 | -7/Garrison | Expanded RIF knowledge: Robot Detection 8620 | -7/Garrison | Triggered checkpoint 8643 | -7/Garrison | Discovered exit to Factory (range 16) 8653 | -7/Garrison | Garrison Relay disabled 8653 | -7/Garrison | Reached level 18 8658 | -7/Garrison | Triggered checkpoint 8686 | -7/Garrison | Entered Factory 8827 | -6/Factory | Sucked down chute 8827 | -6/Factory | Entered Waste 8828 | -6/Waste | Joined by Warlord forces that had cleared the area 8896 | -6/Waste | Found Damper Plating 9080 | -6/Waste | Identified exit to Factory 9080 | -6/Waste | Discovered exit to Factory (range 12) 9107 | -6/Waste | Entered Factory 9107 | -6/Factory | Accompanied by 20 allies 9194 | -6/Factory | Build established: Scavenger-Skirmisher 9221 | -6/Factory | Reached level 19 9349 | -6/Factory | Identified exit to Garrison 9350 | -6/Factory | Entered Garrison 9350 | -6/Garrison | Accompanied by 20 allies 9392 | -6/Garrison | Triggered checkpoint 9449 | -6/Garrison | Garrison Relay disabled 9526 | -6/Garrison | Triggered checkpoint 9528 | -6/Garrison | Triggered checkpoint 9593 | -6/Garrison | Triggered checkpoint 9648 | -6/Garrison | Triggered checkpoint 9780 | -6/Garrison | Triggered checkpoint 9859 | -6/Garrison | Identified exit to Factory 9859 | -6/Garrison | Discovered exit to Factory (range 16) 9982 | -6/Garrison | Garrison Relay disabled 10006 | -6/Garrison | Upgraded with Utility slot (x1) 10079 | -6/Garrison | Spotted B-75 Beast 10096 | -6/Garrison | Allies destroyed B-75 Beast 10232 | -6/Garrison | Triggered checkpoint 10275 | -6/Garrison | Garrison Relay disabled 10367 | -6/Garrison | Discovered exit to Factory (range 10) 10401 | -6/Garrison | Expanded RIF knowledge: Hotswap 10401 | -6/Garrison | Reached level 20 10557 | -6/Garrison | Discovered exit to Factory (range 13) 10650 | -6/Garrison | Triggered checkpoint 10685 | -6/Garrison | Garrison Relay disabled 11192 | -6/Garrison | Entered Factory 11192 | -6/Factory | Accompanied by 3 allies 11435 | -6/Factory | Identified exit to Garrison 11436 | -6/Factory | Entered Garrison 11436 | -6/Garrison | Accompanied by 3 allies 11464 | -6/Garrison | Triggered checkpoint 11464 | -6/Garrison | Garrison Relay disabled 11574 | -6/Garrison | Triggered checkpoint 11596 | -6/Garrison | Triggered checkpoint 11642 | -6/Garrison | Triggered checkpoint 11722 | -6/Garrison | Triggered checkpoint 11800 | -6/Garrison | Identified exit to Factory 11800 | -6/Garrison | Discovered exit to Factory (range 14) 11827 | -6/Garrison | Expanded RIF knowledge: Coupler Efficiency 11860 | -6/Garrison | Triggered checkpoint 11890 | -6/Garrison | Garrison Relay disabled 12026 | -6/Garrison | Triggered checkpoint 12101 | -6/Garrison | Garrison Relay disabled 12146 | -6/Garrison | Discovered exit to Factory (range 13) 12358 | -6/Garrison | Discovered exit to Factory (range 9) 12410 | -6/Garrison | Triggered checkpoint 12474 | -6/Garrison | Garrison Relay disabled 12545 | -6/Garrison | Entered Factory 12547 | -5/Factory | Reached level 21 12575 | -5/Factory | Identified exit to Factory 12575 | -5/Factory | Discovered exit to Factory (range 9) 13064 | -5/Factory | Identified exit to Garrison 13065 | -5/Factory | Entered Garrison 13104 | -5/Garrison | Triggered checkpoint 13110 | -5/Garrison | Reached level 22 13118 | -5/Garrison | Upgraded with Utility slot (x1) 13138 | -5/Garrison | Garrison Relay disabled 13202 | -5/Garrison | Triggered checkpoint 13257 | -5/Garrison | Identified exit to Factory 13257 | -5/Garrison | Discovered exit to Factory (range 14) 13320 | -5/Garrison | Triggered checkpoint 13348 | -5/Garrison | Garrison Relay disabled 13420 | -5/Garrison | Triggered checkpoint 13626 | -5/Garrison | Discovered exit to Factory (range 10) 13704 | -5/Garrison | Triggered checkpoint 13726 | -5/Garrison | Garrison Relay disabled 13761 | -5/Garrison | Phase Generator disabled 13874 | -5/Garrison | Triggered checkpoint 13987 | -5/Garrison | Discovered exit to Factory (range 13) 14013 | -5/Garrison | Expanded RIF knowledge: Autoassimilate 14034 | -5/Garrison | Triggered checkpoint 14037 | -5/Garrison | Reached level 23 14060 | -5/Garrison | Garrison Relay disabled 14504 | -5/Garrison | Entered Factory 14867 | -5/Factory | Garrison activated, responded to threat 15027 | -5/Factory | Identified exit to Garrison 15027 | -5/Factory | Entered Garrison 15033 | -5/Garrison | Expanded RIF knowledge: Autooverride 15136 | -5/Garrison | Triggered checkpoint 15200 | -5/Garrison | Phase Generator disabled 15286 | -5/Garrison | Spotted B-75 Beast 15314 | -5/Garrison | Triggered checkpoint 15374 | -5/Garrison | Destroyed B-75 Beast 15403 | -5/Garrison | Discovered exit to Factory (range 12) 15450 | -5/Garrison | Triggered checkpoint 15453 | -5/Garrison | Garrison Relay disabled 15486 | -5/Garrison | Triggered checkpoint 15550 | -5/Garrison | Triggered checkpoint 15614 | -5/Garrison | Triggered checkpoint 15636 | -5/Garrison | Garrison Relay disabled 15657 | -5/Garrison | Discovered exit to Factory (range 10) 15726 | -5/Garrison | Triggered checkpoint 15752 | -5/Garrison | Triggered checkpoint 15793 | -5/Garrison | Triggered checkpoint 15840 | -5/Garrison | Garrison Relay disabled 15865 | -5/Garrison | Discovered exit to Factory (range 14) 16031 | -5/Garrison | Reached level 24 16094 | -5/Garrison | Upgraded with Utility slot (x1) 16325 | -5/Garrison | Entered Factory 16325 | -4/Factory | Accompanied by 5 allies 16568 | -4/Factory | Spotted B-86 Titan 16588 | -4/Factory | Allies destroyed B-86 Titan 16676 | -4/Factory | Garrison activated, responded to threat 16694 | -4/Factory | Spotted B-86 Titan 16717 | -4/Factory | Destroyed B-86 Titan 16884 | -4/Factory | Reached level 25 16939 | -4/Factory | Identified exit to Research 16939 | -4/Factory | Discovered exit to Research (range 5) 17001 | -4/Factory | Garrison activated, responded to threat 17075 | -4/Factory | First assault squad dispatched 17328 | -4/Factory | Identified exit to Upper Caves 17328 | -4/Factory | Discovered exit to Upper Caves (range 8) 17487 | -4/Factory | Destroyed 7 combat bots 17800 | -4/Factory | Identified exit to Garrison 17800 | -4/Factory | Entered Garrison 17800 | -4/Garrison | Accompanied by 1 ally 17824 | -4/Garrison | Triggered checkpoint 17824 | -4/Garrison | Reached level 26 17836 | -4/Garrison | Garrison Relay disabled 17888 | -4/Garrison | Spotted B-86 Titan 17902 | -4/Garrison | Destroyed B-86 Titan 17924 | -4/Garrison | Triggered checkpoint 17959 | -4/Garrison | Destroyed 7 combat bots 17988 | -4/Garrison | Triggered checkpoint 18056 | -4/Garrison | Discovered exit to Research (range 12) 18097 | -4/Garrison | Expanded RIF knowledge: Coupler Efficiency 18126 | -4/Garrison | Triggered checkpoint 18156 | -4/Garrison | Garrison Relay disabled 18235 | -4/Garrison | Triggered checkpoint 18282 | -4/Garrison | Triggered checkpoint 18374 | -4/Garrison | Discovered exit to Research (range 5) 18492 | -4/Garrison | Spotted B-86 Titan 18554 | -4/Garrison | Destroyed B-86 Titan 18920 | -4/Garrison | Triggered checkpoint 18950 | -4/Garrison | Garrison Relay disabled 19011 | -4/Garrison | Discovered exit to Research (range 13) 19257 | -4/Garrison | Entered Research 19259 | -3/Research | Reached level 27 19261 | -3/Research | Upgraded with Weapon slot (x1) 19625 | -3/Research | Build established: Scavenger-Assassin 19792 | -3/Research | Reached level 28 19974 | -3/Research | Identified exit to Testing 19974 | -3/Research | Discovered exit to Testing (range 8) 19996 | -3/Research | Entered Testing 20393 | -3/Testing | Found Prototype Processor 20393 | -3/Testing | Identified Spectral Analyzer 20861 | -3/Testing | Found Prototype Processor 20861 | -3/Testing | Identified Exp. Target Analyzer 20893 | -3/Testing | Found Prototype Processor 20893 | -3/Testing | Identified Exp. Signal Interpreter 21119 | -3/Testing | Reached level 29 21127 | -3/Testing | Upgraded with Utility slot (x1) 21695 | -3/Testing | Garrison activated, responded to threat 21874 | -3/Testing | Identified exit to Research 21874 | -3/Testing | Discovered exit to Research (range 10) 21884 | -3/Testing | Spotted PL-AXBMUOL7VJ 21890 | -3/Testing | Rewired PL-AXBMUOL7VJ 21904 | -3/Testing | Garrison activated, responded to threat 21937 | -3/Testing | Build established: Scavenger-Skirmisher 22033 | -3/Testing | Identified exit to Garrison 22050 | -3/Testing | Entered Garrison 22050 | -3/Garrison | Accompanied by 3 allies 22086 | -3/Garrison | Triggered checkpoint 22106 | -3/Garrison | Garrison Relay disabled 22257 | -3/Garrison | Spotted B-86 Titan 22279 | -3/Garrison | Destroyed B-86 Titan 22316 | -3/Garrison | Triggered checkpoint 22383 | -3/Garrison | Destroyed 10 combat bots 22438 | -3/Garrison | Triggered checkpoint 22454 | -3/Garrison | Triggered checkpoint 22498 | -3/Garrison | Triggered checkpoint 22516 | -3/Garrison | Garrison Relay disabled 22561 | -3/Garrison | Discovered exit to Research (range 13) 22585 | -3/Garrison | Expanded RIF knowledge: Command Fork 22673 | -3/Garrison | Reached level 30 22732 | -3/Garrison | Discovered exit to Research (range 9) 22757 | -3/Garrison | Garrison Relay disabled 22762 | -3/Garrison | Triggered checkpoint 22887 | -3/Garrison | Discovered exit to Research (range 9) 22916 | -3/Garrison | Triggered checkpoint 22942 | -3/Garrison | Garrison Relay disabled 23027 | -3/Garrison | Entered Research 23422 | -2/Research | Reached level 31 23459 | -2/Research | Found Prototype Device 23459 | -2/Research | Identified Beam Splitter 23519 | -2/Research | Identified exit to Quarantine 23519 | -2/Research | Discovered exit to Quarantine (range 15) 23937 | -2/Research | Identified exit to Access 23937 | -2/Research | Discovered exit to Access (range 14) 24050 | -2/Research | Destroyed 10 combat bots 24225 | -2/Research | Destroyed 8 combat bots 24402 | -2/Research | Build established: Scavenger-Tank 24483 | -2/Research | Reached level 32 24523 | -2/Research | Spotted B-90 Cyclops 24730 | -2/Research | Allied Derelicts emerged from ambush trap array 24758 | -2/Research | Allies destroyed B-90 Cyclops 24777 | -2/Research | First assault squad dispatched 24910 | -2/Research | Garrison activated, responded to threat 25273 | -2/Research | Entered Quarantine 25291 | -2/Quarantine | Found Alien Artifact 25432 | -2/Quarantine | Found Alien Artifact 25432 | -2/Quarantine | Identified Subatomic Replicator 25460 | -2/Quarantine | Garrison activated, responded to threat 25485 | -2/Quarantine | Found Prototype Device 25485 | -2/Quarantine | Identified Exp. Shock Absorption System 25652 | -2/Quarantine | Reached level 33 25857 | -2/Quarantine | Spotted Alpha 7 25890 | -2/Quarantine | Garrison activated, responded to threat 25907 | -2/Quarantine | Destroyed Alpha 7 25930 | -2/Quarantine | Found Prototype Processor 25930 | -2/Quarantine | Identified Exp. Targeting Computer 25977 | -2/Quarantine | Identified Core Reset Matrix 26135 | -2/Quarantine | Discovered exit to Access (range 8) 26225 | -2/Quarantine | Cryocooling Duct disabled 26228 | -2/Quarantine | Cryocooling Duct disabled 26240 | -2/Quarantine | Ambient heat levels rising (+20) 26240 | -2/Quarantine | Non-combat units ordered to evacuate 26243 | -2/Quarantine | Ambient heat levels rising (+20) 26243 | -2/Quarantine | Combat units ordered to evacuate 26343 | -2/Quarantine | Quarantine Guard activated 26389 | -2/Quarantine | Found Prototype Device 26389 | -2/Quarantine | Identified Exp. Actuator Array 26416 | -2/Quarantine | Spotted Quarantine Guard 26441 | -2/Quarantine | Destroyed Quarantine Guard 26512 | -2/Quarantine | Found Alien Artifact 26526 | -2/Quarantine | Spotted Quarantine Guard 26537 | -2/Quarantine | Destroyed Quarantine Guard 26609 | -2/Quarantine | Spotted Quarantine Guard 26647 | -2/Quarantine | Destroyed Quarantine Guard 26844 | -2/Quarantine | Spotted Fortress 27087 | -2/Quarantine | Spotted Quarantine Guard 27106 | -2/Quarantine | Destroyed Quarantine Guard 27222 | -2/Quarantine | Identified Hpw. Transdimensional Reconstructor 27498 | -2/Quarantine | Destroyed Fortress 27519 | -2/Quarantine | Found Prototype Device 27519 | -2/Quarantine | Identified Exp. Force Field 27530 | -2/Quarantine | Found Prototype Device 27530 | -2/Quarantine | Identified Thermal Barrier 27538 | -2/Quarantine | Found Prototype Device 27538 | -2/Quarantine | Identified Exp. EM Disruption Field 27646 | -2/Quarantine | Identified exit to Section 7 27646 | -2/Quarantine | Discovered exit to Section 7 (range 7) 27646 | -2/Quarantine | Spotted Quarantine Guard 27652 | -2/Quarantine | Destroyed Quarantine Guard 27702 | -2/Quarantine | Entered Section 7 27746 | -2/Section 7 | Spotted S7 Guard 27805 | -2/Section 7 | Destroyed S7 Guard 27847 | -2/Section 7 | Found Alien Artifact 27849 | -2/Section 7 | Identified Core Membrane 27849 | -2/Section 7 | Installed Core Membrane, gained immunity to corruption 27866 | -2/Section 7 | Spotted B-90 Cyclops 27872 | -2/Section 7 | Build established: Generator-Tank 27924 | -2/Section 7 | Destroyed B-90 Cyclops 28071 | -2/Section 7 | Spotted S7 Guard 28100 | -2/Section 7 | Destroyed S7 Guard 28260 | -2/Section 7 | Found Alien Artifact 28295 | -2/Section 7 | Identified Core Regenerator 28337 | -2/Section 7 | Found Alien Artifact 28373 | -2/Section 7 | Identified Integrated Mediator 28373 | -2/Section 7 | Installed Integrated Mediator, increased core attachment efficiency. 28444 | -2/Section 7 | Spotted S7 Guard 28470 | -2/Section 7 | Found Alien Artifact 28578 | -2/Section 7 | Destroyed S7 Guard 29192 | -2/Section 7 | Identified Core Physics Calibrator 29248 | -2/Section 7 | Found Prototype Processor 29248 | -2/Section 7 | Identified Exp. Core Analyzer 29289 | -2/Section 7 | Spotted Executioner 29307 | -2/Section 7 | Reached level 34 29307 | -2/Section 7 | Destroyed Executioner 29311 | -2/Section 7 | Spotted Executioner 29319 | -2/Section 7 | Destroyed Executioner 29329 | -2/Section 7 | Found Prototype Device 29329 | -2/Section 7 | Identified Adv. Kinecellerator 29381 | -2/Section 7 | Spotted Alpha 7 29384 | -2/Section 7 | Spotted Alpha 7 29417 | -2/Section 7 | Destroyed Alpha 7 29420 | -2/Section 7 | Destroyed Alpha 7 29456 | -2/Section 7 | Spotted B-99 Colossus 29562 | -2/Section 7 | Destroyed B-99 Colossus 29636 | -2/Section 7 | Build established: Generator-Gunner 29681 | -2/Section 7 | Found Alien Artifact 29681 | -2/Section 7 | Identified LRC Boosters 29681 | -2/Section 7 | Installed LRC Boosters, increased mass support (+10) 29752 | -2/Section 7 | Found Alien Artifact 29752 | -2/Section 7 | Identified Core Expander 29846 | -2/Section 7 | Spotted Executioner 29848 | -2/Section 7 | Spotted Executioner 29854 | -2/Section 7 | Destroyed Executioner 29857 | -2/Section 7 | Destroyed Executioner 29912 | -2/Section 7 | Spotted Striker 29913 | -2/Section 7 | Spotted Striker 29917 | -2/Section 7 | Destroyed Striker 29923 | -2/Section 7 | Destroyed Striker 29995 | -2/Section 7 | Spotted Striker 29995 | -2/Section 7 | Spotted Striker 30110 | -2/Section 7 | Found Alien Artifact 30110 | -2/Section 7 | Identified Transdimensional Reconstructor 30110 | -2/Section 7 | Warped through subspace 30171 | -2/Section 7 | Found Alien Artifact 30171 | -2/Section 7 | Identified Terrabomb 30171 | -2/Section 7 | Used Terrabomb 30194 | -2/Section 7 | Build established: Scavenger-Gunner 30273 | -2/Section 7 | Found Terrabomb 30301 | -2/Section 7 | Used Terrabomb 30483 | -2/Section 7 | Spotted S7 Guard 30500 | -2/Section 7 | Destroyed S7 Guard 30560 | -2/Section 7 | Found Alien Artifact 30560 | -2/Section 7 | Identified Integrated Thermoelectric Network 30560 | -2/Section 7 | Installed Integrated Thermoelectric Network, gained heat-energy exchange potential 30624 | -2/Section 7 | Found Alien Artifact 30624 | -2/Section 7 | Identified Spacefold Activator 30766 | -2/Section 7 | Discovered exit to Access (range 17) 30836 | -2/Section 7 | Entered Access 31553 | -1/Access | Reached level 35 31586 | -1/Access | First assault squad dispatched 31597 | -1/Access | Destroyed 7 combat bots 31598 | -1/Access | Found Prototype Processor 31598 | -1/Access | Identified Exp. Armor Integrity Analyzer 32252 | -1/Access | Garrison activated, responded to threat 32261 | -1/Access | Identified exit to Surface 32477 | -1/Access | Reached level 36 32590 | -1/Access | Identified exit to Command 32590 | -1/Access | Discovered exit to Command (range 15) 32792 | -1/Access | Destroyed 10 combat bots 33023 | -1/Access | Energy Cycler disabled 33027 | -1/Access | Spotted B-99 Colossus 33083 | -1/Access | Spotted B-99 Colossus 33091 | -1/Access | Destroyed B-99 Colossus 33127 | -1/Access | Destroyed B-99 Colossus 33133 | -1/Access | High security lockdown imminent 33140 | -1/Access | Found Prototype Ballistic Gun 33140 | -1/Access | Identified Multirail 33145 | -1/Access | Found Multirail 33168 | -1/Access | Found Multirail 33186 | -1/Access | Entered Command 33270 | -1/Command | Phase Generator disabled 33436 | -1/Command | First assault squad dispatched 33544 | -1/Command | Destroyed 10 combat bots 33636 | -1/Command | Disengaged cave seal 33636 | -1/Command | Wild derelicts emerged from the dark tunnel 33766 | -1/Command | Reached level 37 33814 | -1/Command | Build established: Scavenger-Tank 33822 | -1/Command | Spotted M Guard 33822 | -1/Command | Spotted M Guard 33822 | -1/Command | Spotted Combat Programmer 33823 | -1/Command | Spotted Combat Programmer 33864 | -1/Command | Destroyed M Guard 33899 | -1/Command | Destroyed Combat Programmer 33912 | -1/Command | Destroyed Combat Programmer 33915 | -1/Command | Destroyed M Guard 33915 | -1/Command | All MAIN.C guards destroyed 33925 | -1/Command | Found Prototype Device 33925 | -1/Command | Identified AEGIS Remote Shield 33933 | -1/Command | Found Prototype Reactor 33933 | -1/Command | Identified Zero-point Reactor 33936 | -1/Command | High security lockdown imminent 33938 | -1/Command | Found Zero-point Reactor 34016 | -1/Command | High security lockdown engaged 34051 | -1/Command | Destroyed 14 combat bots 34141 | -1/Command | Met MAIN.C 34156 | -1/Command | 0b10 Conduit disabled 34185 | -1/Command | Scanned by Researcher 34185 | -1/Command | Destroyed Investigator 34195 | -1/Command | Spotted Striker 34195 | -1/Command | Spotted Striker 34212 | -1/Command | Destroyed Striker 34236 | -1/Command | Destroyed MAIN.C Shell 34239 | -1/Command | MAIN.C activated Command garrisons 34241 | -1/Command | Destroyed Striker 34268 | -1/Command | Destroyed 30 combat bots 34310 | -1/Command | Reached level 38 34310 | -1/Command | Destroyed MAIN.C 34328 | -1/Command | Discovered exit to Surface (range 32) 34328 | -1/Command | Discovered exit to Surface (range 78) 34328 | -1/Command | Extracted map data and part IDs from MAIN.C's data core 34424 | -1/Command | Spotted B-99 Colossus 34436 | -1/Command | Destroyed B-99 Colossus 35341 | *** | Establishing 0b11! Last Messages --------------- 34541_ Acquired 28 matter. 34542_ K-01 Serf collects debris. 34550_ R-10 Processor collects Xenon Bombardment Thruster. 34554_ K-01 Serf collects debris. 34561_ K-01 Serf destroyed. 34699_ Wave Inhibitor disabled. 34699_ Slug penetrates Wave Inhibitor. 34703_ Wave Inhibitor collapses. 34730_ Acquired 21 matter. 34770_ Acquired 7 matter. 34876_ H-88 Terminator destroyed. 34877_ Acquired 10 matter. 35329_ Triggered Stasis Trap. 35329_ A bubble of rippling energy engulfs the area. 35329_ Field strength at 54. 35330_ Field strength at 8. 35331_ Stasis field depleted. 35332_ The Access Shell folds into the floor. [Achievement: Commander 0b11] [Achievement: Death Machine] Map ----- +----------------------------------------------------+ | ######""#"""#""#""""" "#########?#?###??# | | # ?#######" " # ## ########### | | #### # ?#####?# " + / / |=%% | | #??#???#????#### "" " #### #"####=[ | | ?#??#?????#?## "# """ #?## # ## | | ???#?#?#??#### ## """"" #### # ## | | ??????????#### #"" """" #### # "# | | ????????###### #" ########### + | | ???????##??#?# #" #???#??# ## #"! | | ???????#?????# ## ###????# ## #"%=*%% | | ?????????#??## ## #####??# ## #"[[%% | | ??????########/## "####### ######/ =%% | | ??????# # # #????#"[=% | | ??????# #######################????#" *[ | | ??????# #?####???????#?????????????#=!= | | ??????# "" #?????????#?????????????????!%!* | | ??????# """" #????##??#???????????????? !=% % | | ??????# """" #?################????????### =! | | ??????# "" #?################????????# %[!* [ | | ??????# #?## ############" =[ " | | ??????# #?## ;;###%%!;###"* " | | ??????# "" #?## ^^^^^^^^ ; # ; %%%;; # T | | ??????# """" #?## ^ ^ ^ =% ;#" " " | | ??????# """" #?## ^ ^^ ! + "% ! | | ??????# "" #?## "" ^ ^^ ^^ ^ ;[ *%== | | ??????# #?## ^ @" ^^^^^^^^^ !** [ ! | | ??????# #?## ^ ^ ^^^^^^ ^%^!%%! !%! | | ??????# #?## ^ ^ %^!^^^^^ ^ !###"!%[ | | ??????####+######?## ^^ ^^^ ! #%#%=/########!" | | ???????# #?????## ;########### ! " | | ???????# #?????## % ############ =[=% | | ???????# #?????################?????????# !!!!/ | | ???????# #?????################?????????#!!!![% | | ?? ##### ########??###########???????????#!! [[[ | | ?? #?# # #??# """" #???????????# !=|/ | | ?? #?# / #??# """" #???????????#! ==" | | ?? #?# # #### """" #???????????#%! %!# | | #### # # / """" #??####"""""""##### | | # #### #### %[%*= % | | # #??# " [%[[!%= %% | | ########??# #### !%=!% * [ | | #########?# #??# **=![%* | | ### # #?#####+###########""!""####### | | ?? #?# # #????# + # " " # | | ??# #?# # "" ###### # #" " # | | ??# #?# # """ # + # " "" # | | ??#####?# # T" # # # """"# | | ????????# # """ #^ # # """"# | | ????????# # "" # ^ # # "" # " | | ????????# + # ^ # # # " | +----------------------------------------------------+ Best States ------------- Heat Dissipation 121 Energy Generation 85 Energy Capacity 850 Matter Stores 800 Matter Capacity 800 Sight Range 19 Robot Scan Range 20 Terrain Scan Range 16 Terrain Scan Density 310 Additional Mass Support 20 Corruption Block 8 Armor Coverage 1600 Resistance: KI 65 Resistance: TH 100 Resistance: EX 100 Resistance: EM 100 Resistance: I 35 Resistance: S 35 Resistance: P 35 Weapon Cycling 25 Evasion (%) 57 Targeting Accuracy 16 Target Analysis 10 Armor Integrity Analysis 50 Recoil Reduction 4 Kinecelleration 50 Salvage Targeting 3 Offensive Hacking 20 Relay Coupler Types 1 Relay Coupler Value 146 Item Schematics ----------------- Adv. Micro-nuke Launcher | -3/Testing | Archive Hellfire Missile Launcher | -3/Testing | Archive Hvy. Antimatter Reactor | -3/Testing | Archive Exp. ECM Suite | -3/Testing | Archive Cld. Gravmag System | -2/Quarantine | Archive Exp. Target Analyzer | -2/Section 7 | Archive Exp. Hacking Suite | -2/Section 7 | Archive Nanosword | -2/Section 7 | Archive Adv. Quantum Shading Machine | -2/Section 7 | Archive Enh. Gamma Bomb Array | -2/Section 7 | Archive Plasma Lance | -2/Section 7 | Archive Robot Schematics ------------------ B-74 Champion | -3/Testing | Archive K-01 Serf | -2/Quarantine | Archive T-07 Excavator | -2/Quarantine | Archive C-65 Expert | -2/Section 7 | Archive Fabricated ------------ Nothing Alien Tech Used ----------------- Subatomic Replicator Core Membrane Integrated Mediator Core Physics Calibrator LRC Boosters Core Expander Transdimensional Reconstructor Terrabomb Integrated Thermoelectric Network Spacefold Activator Achievements -------------- Commander 0b11 Death Machine Challenges ------------ None RPGLIKE | -11 -10 -10 -10 -9 -8 -8 -8 -8 -7 -7 -7 -7 -7 -7 -6 -6 -6 -6 -6 -6 -5 -5 -5 -5 -4 -4 -3 -3 -3 -2 -2 -2 -1 -1 --------- Run | Scr Mat Min Exi Min Mat Gar Mat Gar Fac Was Fac Gar Fac Gar Fac Was Fac Gar Fac Gar Fac Gar Fac Gar Fac Gar Res Tes Gar Res Qua Sec Acc Com Levels Raised 37 | . . 1 . 1 4 3 1 2 2 . 1 1 . 1 . . 1 1 . . 1 2 . 1 1 1 2 1 1 2 1 1 2 2 XP Earned 62084 | 6000 330 1550 200 1204 6407 4578 1544 2378 4034 97 457 1531 199 1034 824 97 582 1548 . 1064 1514 1919 173 1310 2708 1280 2202 1848 1082 3689 1100 1361 3246 2994 XP Spent 59645 | 3370 2400 800 . . 6900 2750 . 6110 2770 700 . . 1700 2300 . . . 4350 . . . 2900 . 3200 1300 950 1400 3500 600 4425 1565 1355 3100 1200 Upgrades 98 | 10 3 1 . . 12 2 . 11 12 2 . . 1 2 . . . 2 . . . 1 . 1 2 4 1 1 2 8 5 4 8 3 Power Slot 2 | . 1 . . . . . . . . . . . . 1 . . . . . . . . . . . . . . . . . . . . Propulsion Slot 5 | 1 1 . . . 1 . . . 1 . . . 1 . . . . . . . . . . . . . . . . . . . . . Utility Slot 11 | 2 1 . . . 2 1 . 1 . . . . . . . . . 1 . . . 1 . 1 . . . 1 . . . . . . Weapon Slot 4 | 1 . 1 . . 1 . . . . . . . . . . . . . . . . . . . . . 1 . . . . . . . Core Integrity 11 | . . . . . 2 . . 2 . . . . . . . . . . . . . . . . . . . . . . 1 . 6 . Heat Dissipation 16 | 4 . . . . 4 . . 4 . . . . . . . . . . . . . . . . . . . . 2 . . 2 . . Matter Storage 10 | . . . . . . . . . . . . . . . . . . . . . . . . . . 4 . . . . 1 2 . 3 Mass Support 2 | . . . . . . . . . . 2 . . . . . . . . . . . . . . . . . . . . . . . . Inventory Capacity 8 | 2 . . . . . 1 . 2 . . . . . 1 . . . 1 . . . . . . . . . . . . . . 1 . Sight Range 3 | . . . . . . . . . . . . . . . . . . . . . . . . . . . . . . . 2 . 1 . Sensor Range 10 | . . . . . . . . . 8 . . . . . . . . . . . . . . . . . . . . 2 . . . . Terrain Scan Density 3 | . . . . . . . . . 3 . . . . . . . . . . . . . . . . . . . . . . . . . Ranged Accuracy 5 | . . . . . 2 . . . . . . . . . . . . . . . . . . . 2 . . . . . 1 . . . KI Resistance % 4 | . . . . . . . . 2 . . . . . . . . . . . . . . . . . . . . . 2 . . . . KI Damage % 4 | . . . . . . . . . . . . . . . . . . . . . . . . . . . . . . 4 . . . . Protomatter Created 18306 | . . 214 . 89 165 185 220 467 859 . 61 807 49 597 46 . . 88 . 347 250 367 142 348 1094 877 373 710 366 1934 1075 1316 2432 2828 Integrity Restored 14593 | . . 450 . 70 176 531 229 453 962 . 172 376 . 250 69 502 . 290 . 188 408 756 . 831 974 1196 245 435 357 721 268 1240 671 1773 Core 7079 | . . 312 . 50 87 366 177 326 538 . 87 216 . 144 45 . . 57 . 54 193 440 . 383 497 686 130 138 165 223 133 481 334 817 Parts 7514 | . . 138 . 20 89 165 52 127 424 . 85 160 . 106 24 502 . 233 . 134 215 316 . 448 477 510 115 297 192 498 135 759 337 956 Protomatter Decayed 25636 | . . 14 . 63 122 10 121 247 495 . . 706 337 450 21 244 79 665 . 520 85 11 142 166 668 443 158 691 342 1814 956 972 1801 13293 Game ------ Seed LightpackPhasingSplitter Manual? 0 Play Time 04:49:07 Cumulative 288.0 hours Start 2022.07.01 @ 20:20:04 End 2022.07.05 @ 00:11:10 Sessions 5 Manual Loads 0 Difficulty Explorer Special Mode Winter2019/RPGLIKE Game No. 98 Rogue 0 Adventurer 1 Explorer 97 Win Type 1 Total 20 Types 9/1/4/3/0/1/1/0/1 Lore% 88 Gallery% 88 Achievement% 76 Wizard Run 0 Options --------- ASCII 0 Keyboard 1 Movement Numpad Keybinds 0 Fullscreen 0 Font 14/Terminus Map View 76x50 Tactical HUD 1 Map Filters BRIGHTNESS(150) Filters NONE Steam 1 RUN: 80ad6417-bad0-4a70-bd7d-92891a37d6ad